Workbook

Sheet 4-6-2013
A1: Team | B1: GP* | C1: FGM* | D1: FGA* | E1: FG% | F1: FTM* | G1: FTA* | H1: FT% | I1: 3PTM | J1: PTS | K1: REB | L1: AST | M1: ST | N1: BLK | O1: TO | T1: Team | U1: FG% | V1: FT% | W1: 3PTM | X1: PTS | Y1: REB | Z1: AST | AA1: ST | AB1: BLK | AC1: TO | AG1: 0
A2: Nets | B2: 885 | C2: 4573 | D2: 10040 | E2: 0.4554780876 | F2: 2089 | G2: 2706 | H2: 0.7719881744 | I2: 887 | J2: 12122 | K2: 4172 | L2: 2656 | M2: 805 | N2: 677 | O2: 1598 | T2: Nets | U2: 0.4554780876 | V2: 0.7719881744 | W2: 1.002259887 | X2: 13.69717514 | Y2: 4.714124294 | Z2: 3.001129944 | AA2: 0.9096045198 | AB2: 0.7649717514 | AC2: 1.805649718 | AG2: 2013-04-06
A3: Kings | B3: 884 | C3: 3872 | D3: 8570 | E3: 0.4518086348 | F3: 1971 | G3: 2515 | H3: 0.7836978131 | I3: 667 | J3: 10382 | K3: 3777 | L3: 2459 | M3: 738 | N3: 449 | O3: 1451 | T3: Kings | U3: 0.4518086348 | V3: 0.7836978131 | W3: 0.7545248869 | X3: 11.74434389 | Y3: 4.272624434 | Z3: 2.781674208 | AA3: 0.834841629 | AB3: 0.507918552 | AC3: 1.641402715
A4: Clippers | B4: 963 | C4: 4422 | D4: 9142 | E4: 0.483701597 | F4: 2220 | G4: 3032 | H4: 0.7321899736 | I4: 702 | J4: 11766 | K4: 5272 | L4: 2950 | M4: 967 | N4: 727 | O4: 1800 | T4: Clippers | U4: 0.483701597 | V4: 0.7321899736 | W4: 0.7289719626 | X4: 12.21806854 | Y4: 5.474558671 | Z4: 3.063343718 | AA4: 1.004153686 | AB4: 0.7549325026 | AC4: 1.869158879
A5: Trailblazers | B5: 943 | C5: 4038 | D5: 8994 | E5: 0.4489659773 | F5: 1742 | G5: 2239 | H5: 0.7780259044 | I5: 917 | J5: 10735 | K5: 5109 | L5: 3075 | M5: 760 | N5: 462 | O5: 1706 | T5: Trailblazers | U5: 0.4489659773 | V5: 0.7780259044 | W5: 0.9724284199 | X5: 11.38388123 | Y5: 5.417815483 | Z5: 3.260869565 | AA5: 0.8059384942 | AB5: 0.4899257688 | AC5: 1.80911983
A6: Hawks | B6: 946 | C6: 4360 | D6: 9604 | E6: 0.4539775094 | F6: 1942 | G6: 2527 | H6: 0.7685001979 | I6: 796 | J6: 11458 | K6: 4464 | L6: 2376 | M6: 869 | N6: 466 | O6: 1440 | T6: Hawks | U6: 0.4539775094 | V6: 0.7685001979 | W6: 0.8414376321 | X6: 12.11205074 | Y6: 4.718816068 | Z6: 2.511627907 | AA6: 0.9186046512 | AB6: 0.4926004228 | AC6: 1.522198732
A7: Celtics | B7: 936 | C7: 4172 | D7: 9171 | E7: 0.4549122233 | F7: 1798 | G7: 2348 | H7: 0.765758092 | I7: 683 | J7: 10825 | K7: 4840 | L7: 2469 | M7: 958 | N7: 821 | O7: 1612 | T7: Celtics | U7: 0.4549122233 | V7: 0.765758092 | W7: 0.7297008547 | X7: 11.56517094 | Y7: 5.170940171 | Z7: 2.637820513 | AA7: 1.023504274 | AB7: 0.8771367521 | AC7: 1.722222222
A8: Nuggets | B8: 870 | C8: 4033 | D8: 8941 | E8: 0.4510681132 | F8: 1780 | G8: 2359 | H8: 0.7545570157 | I8: 761 | J8: 10607 | K8: 4162 | L8: 2074 | M8: 757 | N8: 467 | O8: 1501 | T8: Nuggets | U8: 0.4510681132 | V8: 0.7545570157 | W8: 0.8747126437 | X8: 12.19195402 | Y8: 4.783908046 | Z8: 2.383908046 | AA8: 0.8701149425 | AB8: 0.5367816092 | AC8: 1.725287356
A9: Thunder | B9: 928 | C9: 4958 | D9: 10579 | E9: 0.468664335 | F9: 2237 | G9: 2796 | H9: 0.8000715308 | I9: 713 | J9: 12866 | K9: 4387 | L9: 2586 | M9: 840 | N9: 493 | O9: 1605 | T9: Thunder | U9: 0.468664335 | V9: 0.8000715308 | W9: 0.7683189655 | X9: 13.86422414 | Y9: 4.72737069 | Z9: 2.786637931 | AA9: 0.9051724138 | AB9: 0.53125 | AC9: 1.729525862
A10: Warriors | B10: 911 | C10: 4890 | D10: 10708 | E10: 0.4566679118 | F10: 2272 | G10: 2970 | H10: 0.764983165 | I10: 679 | J10: 12731 | K10: 4869 | L10: 2627 | M10: 1059 | N10: 412 | O10: 1726 | T10: Warriors | U10: 0.4566679118 | V10: 0.764983165 | W10: 0.7453347969 | X10: 13.97475302 | Y10: 5.34467618 | Z10: 2.883644347 | AA10: 1.162458836 | AB10: 0.4522502744 | AC10: 1.894621295
A11: Knicks | B11: 971 | C11: 4178 | D11: 9223 | E11: 0.4529979399 | F11: 2300 | G11: 3191 | H11: 0.7207771858 | I11: 839 | J11: 11495 | K11: 5042 | L11: 2056 | M11: 898 | N11: 519 | O11: 1511 | T11: Knicks | U11: 0.4529979399 | V11: 0.7207771858 | W11: 0.8640576725 | X11: 11.83831102 | Y11: 5.192584964 | Z11: 2.117404737 | AA11: 0.9248197734 | AB11: 0.5345005149 | AC11: 1.556127703
A12: Mavericks | B12: 846 | C12: 3087 | D12: 6956 | E12: 0.4437895342 | F12: 1114 | G12: 1425 | H12: 0.781754386 | I12: 934 | J12: 8222 | K12: 3238 | L12: 2159 | M12: 604 | N12: 395 | O12: 1075 | T12: Mavericks | U12: 0.4437895342 | V12: 0.781754386 | W12: 1.104018913 | X12: 9.718676123 | Y12: 3.827423168 | Z12: 2.552009456 | AA12: 0.7139479905 | AB12: 0.4669030733 | AC12: 1.270685579
A13: Heat | B13: 949 | C13: 4851 | D13: 10609 | E13: 0.4572532755 | F13: 2361 | G13: 3010 | H13: 0.7843853821 | I13: 868 | J13: 12931 | K13: 5480 | L13: 3082 | M13: 981 | N13: 483 | O13: 1764 | T13: Heat | U13: 0.4572532755 | V13: 0.7843853821 | W13: 0.9146469968 | X13: 13.62592202 | Y13: 5.774499473 | Z13: 3.247629083 | AA13: 1.033719705 | AB13: 0.5089567966 | AC13: 1.858798736
A14: Jazz | B14: 811 | C14: 3887 | D14: 8397 | E14: 0.4629034179 | F14: 1670 | G14: 2257 | H14: 0.7399202481 | I14: 563 | J14: 10007 | K14: 3784 | L14: 2426 | M14: 777 | N14: 515 | O14: 1411 | T14: Jazz | U14: 0.4629034179 | V14: 0.7399202481 | W14: 0.6942046856 | X14: 12.33908755 | Y14: 4.665844636 | Z14: 2.991368681 | AA14: 0.9580764488 | AB14: 0.6350184957 | AC14: 1.739827374
A15: Bulls | B15: 817 | C15: 3667 | D15: 7843 | E15: 0.4675506821 | F15: 2011 | G15: 2560 | H15: 0.785546875 | I15: 658 | J15: 10003 | K15: 4076 | L15: 1945 | M15: 708 | N15: 607 | O15: 1378 | T15: Bulls | U15: 0.4675506821 | V15: 0.785546875 | W15: 0.8053855569 | X15: 12.24357405 | Y15: 4.988984088 | Z15: 2.380660955 | AA15: 0.8665850673 | AB15: 0.7429620563 | AC15: 1.686658507
A16: Suns | B16: 916 | C16: 4125 | D16: 9032 | E16: 0.4567094774 | F16: 1640 | G16: 2129 | H16: 0.7703147017 | I16: 1112 | J16: 11002 | K16: 4157 | L16: 2562 | M16: 730 | N16: 558 | O16: 1482 | T16: Suns | U16: 0.4567094774 | V16: 0.7703147017 | W16: 1.213973799 | X16: 12.01091703 | Y16: 4.538209607 | Z16: 2.796943231 | AA16: 0.7969432314 | AB16: 0.6091703057 | AC16: 1.61790393
A17: Lakers | B17: 1002 | C17: 4169 | D17: 8788 | E17: 0.4743969049 | F17: 2248 | G17: 2916 | H17: 0.7709190672 | I17: 630 | J17: 11216 | K17: 5566 | L17: 2141 | M17: 1095 | N17: 859 | O17: 1485 | T17: Lakers | U17: 0.4743969049 | V17: 0.7709190672 | W17: 0.628742515 | X17: 11.19361277 | Y17: 5.55489022 | Z17: 2.136726547 | AA17: 1.092814371 | AB17: 0.8572854291 | AC17: 1.482035928
A19: Ranks | T19: Ranks (per game played)
A20: Team | E20: FG% | H20: FT% | I20: 3PTM | J20: PTS | K20: REB | L20: AST | M20: ST | N20: BLK | O20: TO | P20: Total | Q20: Rank | T20: Team | U20: FG% | V20: FT% | W20: 3PTM | X20: PTS | Y20: REB | Z20: AST | AA20: ST | AB20: BLK | AC20: TO | AD20: Total | AE20: Rank
A21: Heat | E21: 6 | H21: 3 | I21: 5 | J21: 1 | K21: 2 | L21: 1 | M21: 3 | N21: 10 | O21: 15 | P21: 46 | Q21: 1 | T21: Heat | U21: 6 | V21: 3 | W21: 5 | X21: 4 | Y21: 1 | Z21: 2 | AA21: 3 | AB21: 11 | AC21: 14 | AD21: 49 | AE21: 1
A22: Lakers | E22: 2 | H22: 8 | I22: 15 | J22: 8 | K22: 1 | L22: 13 | M22: 1 | N22: 1 | O22: 7 | P22: 56 | Q22: 2 | T22: Nets | U22: 9 | V22: 7 | W22: 3 | X22: 3 | Y22: 12 | Z22: 4 | AA22: 9 | AB22: 3 | AC22: 12 | AD22: 62 | AE22: 2
A23: Thunder | E23: 3 | H23: 1 | I23: 9 | J23: 2 | K23: 9 | L23: 6 | M23: 8 | N23: 9 | O23: 11 | P23: 58 | Q23: 3 | T23: Thunder | U23: 3 | V23: 1 | W23: 10 | X23: 2 | Y23: 10 | Z23: 8 | AA23: 10 | AB23: 10 | AC23: 10 | AD23: 64 | AE23: 3
A24: Clippers | E24: 1 | H24: 15 | I24: 10 | J24: 5 | K24: 3 | L24: 3 | M24: 4 | N24: 3 | O24: 16 | P24: 60 | Q24: 4 | T24: Lakers | U24: 2 | V24: 8 | W24: 16 | X24: 15 | Y24: 2 | Z24: 15 | AA24: 2 | AB24: 2 | AC24: 2 | AD24: 64 | AE24: 3
A25: Nets | E25: 9 | H25: 7 | I25: 4 | J25: 4 | K25: 10 | L25: 4 | M25: 9 | N25: 4 | O25: 10 | P25: 61 | Q25: 5 | T25: Clippers | U25: 1 | V25: 15 | W25: 14 | X25: 7 | Y25: 3 | Z25: 3 | AA25: 5 | AB25: 4 | AC25: 15 | AD25: 67 | AE25: 5
A26: Suns | E26: 7 | H26: 9 | I26: 1 | J26: 9 | K26: 12 | L26: 7 | M26: 14 | N26: 6 | O26: 6 | P26: 71 | Q26: 6 | T26: Bulls | U26: 4 | V26: 2 | W26: 9 | X26: 6 | Y26: 8 | Z26: 14 | AA26: 12 | AB26: 5 | AC26: 7 | AD26: 67 | AE26: 5
A27: Celtics | E27: 10 | H27: 11 | I27: 11 | J27: 10 | K27: 7 | L27: 8 | M27: 5 | N27: 2 | O27: 12 | P27: 76 | Q27: 7 | T27: Suns | U27: 7 | V27: 9 | W27: 1 | X27: 10 | Y27: 14 | Z27: 7 | AA27: 15 | AB27: 7 | AC27: 5 | AD27: 75 | AE27: 7
A28: Hawks | E28: 11 | H28: 10 | I28: 7 | J28: 7 | K28: 8 | L28: 11 | M28: 7 | N28: 12 | O28: 4 | P28: 77 | Q28: 8 | T28: Warriors | U28: 8 | V28: 12 | W28: 12 | X28: 1 | Y28: 5 | Z28: 6 | AA28: 1 | AB28: 16 | AC28: 16 | AD28: 77 | AE28: 8
A29: Warriors | E29: 8 | H29: 12 | I29: 12 | J29: 3 | K29: 6 | L29: 5 | M29: 2 | N29: 15 | O29: 14 | P29: 77 | Q29: 8 | T29: Celtics | U29: 10 | V29: 11 | W29: 13 | X29: 13 | Y29: 7 | Z29: 10 | AA29: 4 | AB29: 1 | AC29: 8 | AD29: 77 | AE29: 8
A30: Trailblazers | E30: 15 | H30: 6 | I30: 3 | J30: 11 | K30: 4 | L30: 2 | M30: 11 | N30: 13 | O30: 13 | P30: 78 | Q30: 10 | T30: Jazz | U30: 5 | V30: 14 | W30: 15 | X30: 5 | Y30: 13 | Z30: 5 | AA30: 6 | AB30: 6 | AC30: 11 | AD30: 80 | AE30: 10
A31: Knicks | E31: 12 | H31: 16 | I31: 6 | J31: 6 | K31: 5 | L31: 15 | M31: 6 | N31: 7 | O31: 9 | P31: 82 | Q31: 11 | T31: Hawks | U31: 11 | V31: 10 | W31: 8 | X31: 9 | Y31: 11 | Z31: 12 | AA31: 8 | AB31: 13 | AC31: 3 | AD31: 85 | AE31: 11
A32: Bulls | E32: 4 | H32: 2 | I32: 14 | J32: 15 | K32: 13 | L32: 16 | M32: 15 | N32: 5 | O32: 2 | P32: 86 | Q32: 12 | T32: Trailblazers | U32: 15 | V32: 6 | W32: 4 | X32: 14 | Y32: 4 | Z32: 1 | AA32: 14 | AB32: 14 | AC32: 13 | AD32: 85 | AE32: 11
A33: Jazz | E33: 5 | H33: 14 | I33: 16 | J33: 14 | K33: 14 | L33: 10 | M33: 10 | N33: 8 | O33: 3 | P33: 94 | Q33: 13 | T33: Knicks | U33: 12 | V33: 16 | W33: 7 | X33: 11 | Y33: 6 | Z33: 16 | AA33: 7 | AB33: 9 | AC33: 4 | AD33: 88 | AE33: 13
A34: Kings | E34: 13 | H34: 4 | I34: 13 | J34: 13 | K34: 15 | L34: 9 | M34: 13 | N34: 14 | O34: 5 | P34: 99 | Q34: 14 | T34: Nuggets | U34: 14 | V34: 13 | W34: 6 | X34: 8 | Y34: 9 | Z34: 13 | AA34: 11 | AB34: 8 | AC34: 9 | AD34: 91 | AE34: 14
A35: Mavericks | E35: 16 | H35: 5 | I35: 2 | J35: 16 | K35: 16 | L35: 12 | M35: 16 | N35: 16 | O35: 1 | P35: 100 | Q35: 15 | T35: Kings | U35: 13 | V35: 4 | W35: 11 | X35: 12 | Y35: 15 | Z35: 9 | AA35: 13 | AB35: 12 | AC35: 6 | AD35: 95 | AE35: 15
A36: Nuggets | E36: 14 | H36: 13 | I36: 8 | J36: 12 | K36: 11 | L36: 14 | M36: 12 | N36: 11 | O36: 8 | P36: 103 | Q36: 16 | T36: Mavericks | U36: 16 | V36: 5 | W36: 2 | X36: 16 | Y36: 16 | Z36: 11 | AA36: 16 | AB36: 15 | AC36: 1 | AD36: 98 | AE36: 16
A38: Matchups | T38: Matchups (per game played)
A39: Team | B39: FG% | C39: FT% | D39: 3PTM | E39: PTS | F39: REB | G39: AST | H39: ST | I39: BLK | J39: TO | K39: Score | T39: Team | U39: FG% | V39: FT% | W39: 3PTM | X39: PTS | Y39: REB | Z39: AST | AA39: ST | AB39: BLK | AC39: TO | AD39: Score
A40: Lakers | B40: 0.4743969049 | C40: 0.7709190672 | D40: 630 | E40: 11216 | F40: 5566 | G40: 2141 | H40: 1095 | I40: 859 | J40: 1485 | K40: 5 | T40: Lakers | U40: 0.4743969049 | V40: 0.7709190672 | W40: 0.628742515 | X40: 11.19361277 | Y40: 5.55489022 | Z40: 2.136726547 | AA40: 1.092814371 | AB40: 0.8572854291 | AC40: 1.482035928 | AD40: 5
A41: Nets | B41: 0.4554780876 | C41: 0.7719881744 | D41: 887 | E41: 12122 | F41: 4172 | G41: 2656 | H41: 805 | I41: 677 | J41: 1598 | K41: 4 | T41: Nets | U41: 0.4554780876 | V41: 0.7719881744 | W41: 1.002259887 | X41: 13.69717514 | Y41: 4.714124294 | Z41: 3.001129944 | AA41: 0.9096045198 | AB41: 0.7649717514 | AC41: 1.805649718 | AD41: 4
A43: Lakers | B43: 0.4743969049 | C43: 0.7709190672 | D43: 630 | E43: 11216 | F43: 5566 | G43: 2141 | H43: 1095 | I43: 859 | J43: 1485 | K43: 5 | T43: Lakers | U43: 0.4743969049 | V43: 0.7709190672 | W43: 0.628742515 | X43: 11.19361277 | Y43: 5.55489022 | Z43: 2.136726547 | AA43: 1.092814371 | AB43: 0.8572854291 | AC43: 1.482035928 | AD43: 5
A44: Kings | B44: 0.4518086348 | C44: 0.7836978131 | D44: 667 | E44: 10382 | F44: 3777 | G44: 2459 | H44: 738 | I44: 449 | J44: 1451 | K44: 4 | T44: Kings | U44: 0.4518086348 | V44: 0.7836978131 | W44: 0.7545248869 | X44: 11.74434389 | Y44: 4.272624434 | Z44: 2.781674208 | AA44: 0.834841629 | AB44: 0.507918552 | AC44: 1.641402715 | AD44: 4
A46: Lakers | B46: 0.4743969049 | C46: 0.7709190672 | D46: 630 | E46: 11216 | F46: 5566 | G46: 2141 | H46: 1095 | I46: 859 | J46: 1485 | K46: 5 | T46: Lakers | U46: 0.4743969049 | V46: 0.7709190672 | W46: 0.628742515 | X46: 11.19361277 | Y46: 5.55489022 | Z46: 2.136726547 | AA46: 1.092814371 | AB46: 0.8572854291 | AC46: 1.482035928 | AD46: 5
A47: Clippers | B47: 0.483701597 | C47: 0.7321899736 | D47: 702 | E47: 11766 | F47: 5272 | G47: 2950 | H47: 967 | I47: 727 | J47: 1800 | K47: 4 | T47: Clippers | U47: 0.483701597 | V47: 0.7321899736 | W47: 0.7289719626 | X47: 12.21806854 | Y47: 5.474558671 | Z47: 3.063343718 | AA47: 1.004153686 | AB47: 0.7549325026 | AC47: 1.869158879 | AD47: 4
A49: Lakers | B49: 0.4743969049 | C49: 0.7709190672 | D49: 630 | E49: 11216 | F49: 5566 | G49: 2141 | H49: 1095 | I49: 859 | J49: 1485 | K49: 6 | T49: Lakers | U49: 0.4743969049 | V49: 0.7709190672 | W49: 0.628742515 | X49: 11.19361277 | Y49: 5.55489022 | Z49: 2.136726547 | AA49: 1.092814371 | AB49: 0.8572854291 | AC49: 1.482035928 | AD49: 5
A50: Trailblazers | B50: 0.4489659773 | C50: 0.7780259044 | D50: 917 | E50: 10735 | F50: 5109 | G50: 3075 | H50: 760 | I50: 462 | J50: 1706 | K50: 3 | T50: Trailblazers | U50: 0.4489659773 | V50: 0.7780259044 | W50: 0.9724284199 | X50: 11.38388123 | Y50: 5.417815483 | Z50: 3.260869565 | AA50: 0.8059384942 | AB50: 0.4899257688 | AC50: 1.80911983 | AD50: 4
A52: Lakers | B52: 0.4743969049 | C52: 0.7709190672 | D52: 630 | E52: 11216 | F52: 5566 | G52: 2141 | H52: 1095 | I52: 859 | J52: 1485 | K52: 5 | T52: Lakers | U52: 0.4743969049 | V52: 0.7709190672 | W52: 0.628742515 | X52: 11.19361277 | Y52: 5.55489022 | Z52: 2.136726547 | AA52: 1.092814371 | AB52: 0.8572854291 | AC52: 1.482035928 | AD52: 6
A53: Hawks | B53: 0.4539775094 | C53: 0.7685001979 | D53: 796 | E53: 11458 | F53: 4464 | G53: 2376 | H53: 869 | I53: 466 | J53: 1440 | K53: 4 | T53: Hawks | U53: 0.4539775094 | V53: 0.7685001979 | W53: 0.8414376321 | X53: 12.11205074 | Y53: 4.718816068 | Z53: 2.511627907 | AA53: 0.9186046512 | AB53: 0.4926004228 | AC53: 1.522198732 | AD53: 3
A55: Lakers | B55: 0.4743969049 | C55: 0.7709190672 | D55: 630 | E55: 11216 | F55: 5566 | G55: 2141 | H55: 1095 | I55: 859 | J55: 1485 | K55: 7 | T55: Lakers | U55: 0.4743969049 | V55: 0.7709190672 | W55: 0.628742515 | X55: 11.19361277 | Y55: 5.55489022 | Z55: 2.136726547 | AA55: 1.092814371 | AB55: 0.8572854291 | AC55: 1.482035928 | AD55: 5
A56: Celtics | B56: 0.4549122233 | C56: 0.765758092 | D56: 683 | E56: 10825 | F56: 4840 | G56: 2469 | H56: 958 | I56: 821 | J56: 1612 | K56: 2 | T56: Celtics | U56: 0.4549122233 | V56: 0.765758092 | W56: 0.7297008547 | X56: 11.56517094 | Y56: 5.170940171 | Z56: 2.637820513 | AA56: 1.023504274 | AB56: 0.8771367521 | AC56: 1.722222222 | AD56: 4
A58: Lakers | B58: 0.4743969049 | C58: 0.7709190672 | D58: 630 | E58: 11216 | F58: 5566 | G58: 2141 | H58: 1095 | I58: 859 | J58: 1485 | K58: 8 | T58: Lakers | U58: 0.4743969049 | V58: 0.7709190672 | W58: 0.628742515 | X58: 11.19361277 | Y58: 5.55489022 | Z58: 2.136726547 | AA58: 1.092814371 | AB58: 0.8572854291 | AC58: 1.482035928 | AD58: 6
A59: Nuggets | B59: 0.4510681132 | C59: 0.7545570157 | D59: 761 | E59: 10607 | F59: 4162 | G59: 2074 | H59: 757 | I59: 467 | J59: 1501 | K59: 1 | T59: Nuggets | U59: 0.4510681132 | V59: 0.7545570157 | W59: 0.8747126437 | X59: 12.19195402 | Y59: 4.783908046 | Z59: 2.383908046 | AA59: 0.8701149425 | AB59: 0.5367816092 | AC59: 1.725287356 | AD59: 3
A61: Lakers | B61: 0.4743969049 | C61: 0.7709190672 | D61: 630 | E61: 11216 | F61: 5566 | G61: 2141 | H61: 1095 | I61: 859 | J61: 1485 | K61: 5 | T61: Lakers | U61: 0.4743969049 | V61: 0.7709190672 | W61: 0.628742515 | X61: 11.19361277 | Y61: 5.55489022 | Z61: 2.136726547 | AA61: 1.092814371 | AB61: 0.8572854291 | AC61: 1.482035928 | AD61: 5
A62: Thunder | B62: 0.468664335 | C62: 0.8000715308 | D62: 713 | E62: 12866 | F62: 4387 | G62: 2586 | H62: 840 | I62: 493 | J62: 1605 | K62: 4 | T62: Thunder | U62: 0.468664335 | V62: 0.8000715308 | W62: 0.7683189655 | X62: 13.86422414 | Y62: 4.72737069 | Z62: 2.786637931 | AA62: 0.9051724138 | AB62: 0.53125 | AC62: 1.729525862 | AD62: 4
A64: Lakers | B64: 0.4743969049 | C64: 0.7709190672 | D64: 630 | E64: 11216 | F64: 5566 | G64: 2141 | H64: 1095 | I64: 859 | J64: 1485 | K64: 6 | T64: Lakers | U64: 0.4743969049 | V64: 0.7709190672 | W64: 0.628742515 | X64: 11.19361277 | Y64: 5.55489022 | Z64: 2.136726547 | AA64: 1.092814371 | AB64: 0.8572854291 | AC64: 1.482035928 | AD64: 5
A65: Warriors | B65: 0.4566679118 | C65: 0.764983165 | D65: 679 | E65: 12731 | F65: 4869 | G65: 2627 | H65: 1059 | I65: 412 | J65: 1726 | K65: 3 | T65: Warriors | U65: 0.4566679118 | V65: 0.764983165 | W65: 0.7453347969 | X65: 13.97475302 | Y65: 5.34467618 | Z65: 2.883644347 | AA65: 1.162458836 | AB65: 0.4522502744 | AC65: 1.894621295 | AD65: 4
A67: Lakers | B67: 0.4743969049 | C67: 0.7709190672 | D67: 630 | E67: 11216 | F67: 5566 | G67: 2141 | H67: 1095 | I67: 859 | J67: 1485 | K67: 7 | T67: Lakers | U67: 0.4743969049 | V67: 0.7709190672 | W67: 0.628742515 | X67: 11.19361277 | Y67: 5.55489022 | Z67: 2.136726547 | AA67: 1.092814371 | AB67: 0.8572854291 | AC67: 1.482035928 | AD67: 7
A68: Knicks | B68: 0.4529979399 | C68: 0.7207771858 | D68: 839 | E68: 11495 | F68: 5042 | G68: 2056 | H68: 898 | I68: 519 | J68: 1511 | K68: 2 | T68: Knicks | U68: 0.4529979399 | V68: 0.7207771858 | W68: 0.8640576725 | X68: 11.83831102 | Y68: 5.192584964 | Z68: 2.117404737 | AA68: 0.9248197734 | AB68: 0.5345005149 | AC68: 1.556127703 | AD68: 2
A70: Lakers | B70: 0.4743969049 | C70: 0.7709190672 | D70: 630 | E70: 11216 | F70: 5566 | G70: 2141 | H70: 1095 | I70: 859 | J70: 1485 | K70: 5 | T70: Lakers | U70: 0.4743969049 | V70: 0.7709190672 | W70: 0.628742515 | X70: 11.19361277 | Y70: 5.55489022 | Z70: 2.136726547 | AA70: 1.092814371 | AB70: 0.8572854291 | AC70: 1.482035928 | AD70: 5
A71: Mavericks | B71: 0.4437895342 | C71: 0.781754386 | D71: 934 | E71: 8222 | F71: 3238 | G71: 2159 | H71: 604 | I71: 395 | J71: 1075 | K71: 4 | T71: Mavericks | U71: 0.4437895342 | V71: 0.781754386 | W71: 1.104018913 | X71: 9.718676123 | Y71: 3.827423168 | Z71: 2.552009456 | AA71: 0.7139479905 | AB71: 0.4669030733 | AC71: 1.270685579 | AD71: 4
A73: Lakers | B73: 0.4743969049 | C73: 0.7709190672 | D73: 630 | E73: 11216 | F73: 5566 | G73: 2141 | H73: 1095 | I73: 859 | J73: 1485 | K73: 5 | T73: Lakers | U73: 0.4743969049 | V73: 0.7709190672 | W73: 0.628742515 | X73: 11.19361277 | Y73: 5.55489022 | Z73: 2.136726547 | AA73: 1.092814371 | AB73: 0.8572854291 | AC73: 1.482035928 | AD73: 4
A74: Heat | B74: 0.4572532755 | C74: 0.7843853821 | D74: 868 | E74: 12931 | F74: 5480 | G74: 3082 | H74: 981 | I74: 483 | J74: 1764 | K74: 4 | T74: Heat | U74: 0.4572532755 | V74: 0.7843853821 | W74: 0.9146469968 | X74: 13.62592202 | Y74: 5.774499473 | Z74: 3.247629083 | AA74: 1.033719705 | AB74: 0.5089567966 | AC74: 1.858798736 | AD74: 5
A76: Lakers | B76: 0.4743969049 | C76: 0.7709190672 | D76: 630 | E76: 11216 | F76: 5566 | G76: 2141 | H76: 1095 | I76: 859 | J76: 1485 | K76: 7 | T76: Lakers | U76: 0.4743969049 | V76: 0.7709190672 | W76: 0.628742515 | X76: 11.19361277 | Y76: 5.55489022 | Z76: 2.136726547 | AA76: 1.092814371 | AB76: 0.8572854291 | AC76: 1.482035928 | AD76: 6
A77: Jazz | B77: 0.4629034179 | C77: 0.7399202481 | D77: 563 | E77: 10007 | F77: 3784 | G77: 2426 | H77: 777 | I77: 515 | J77: 1411 | K77: 2 | T77: Jazz | U77: 0.4629034179 | V77: 0.7399202481 | W77: 0.6942046856 | X77: 12.33908755 | Y77: 4.665844636 | Z77: 2.991368681 | AA77: 0.9580764488 | AB77: 0.6350184957 | AC77: 1.739827374 | AD77: 3
A79: Lakers | B79: 0.4743969049 | C79: 0.7709190672 | D79: 630 | E79: 11216 | F79: 5566 | G79: 2141 | H79: 1095 | I79: 859 | J79: 1485 | K79: 6 | T79: Lakers | U79: 0.4743969049 | V79: 0.7709190672 | W79: 0.628742515 | X79: 11.19361277 | Y79: 5.55489022 | Z79: 2.136726547 | AA79: 1.092814371 | AB79: 0.8572854291 | AC79: 1.482035928 | AD79: 5
A80: Bulls | B80: 0.4675506821 | C80: 0.785546875 | D80: 658 | E80: 10003 | F80: 4076 | G80: 1945 | H80: 708 | I80: 607 | J80: 1378 | K80: 3 | T80: Bulls | U80: 0.4675506821 | V80: 0.785546875 | W80: 0.8053855569 | X80: 12.24357405 | Y80: 4.988984088 | Z80: 2.380660955 | AA80: 0.8665850673 | AB80: 0.7429620563 | AC80: 1.686658507 | AD80: 4
A82: Lakers | B82: 0.4743969049 | C82: 0.7709190672 | D82: 630 | E82: 11216 | F82: 5566 | G82: 2141 | H82: 1095 | I82: 859 | J82: 1485 | K82: 6 | T82: Lakers | U82: 0.4743969049 | V82: 0.7709190672 | W82: 0.628742515 | X82: 11.19361277 | Y82: 5.55489022 | Z82: 2.136726547 | AA82: 1.092814371 | AB82: 0.8572854291 | AC82: 1.482035928 | AD82: 6
A83: Suns | B83: 0.4567094774 | C83: 0.7703147017 | D83: 1112 | E83: 11002 | F83: 4157 | G83: 2562 | H83: 730 | I83: 558 | J83: 1482 | K83: 3 | T83: Suns | U83: 0.4567094774 | V83: 0.7703147017 | W83: 1.213973799 | X83: 12.01091703 | Y83: 4.538209607 | Z83: 2.796943231 | AA83: 0.7969432314 | AB83: 0.6091703057 | AC83: 1.61790393 | AD83: 3

Sheet Team Totals
A1: Team | B1: GP* | C1: FGM* | D1: FGA* | E1: FG% | F1: FTM* | G1: FTA* | H1: FT% | I1: 3PTM | J1: PTS | K1: REB | L1: AST | M1: ST | N1: BLK | O1: TO | T1: Team | U1: FG% | V1: FT% | W1: 3PTM | X1: PTS | Y1: REB | Z1: AST | AA1: ST | AB1: BLK | AC1: TO | AF1: My Team #: | AG1: 16
A2: Nets | B2: =SUM('Raw Data'!C2:C15) -> 939 | C2: =SUM('Raw Data'!D2:D15) -> 4880 | D2: =SUM('Raw Data'!E2:E15) -> 10678 | E2: =C2/D2 -> 0.4570144222 | F2: =SUM('Raw Data'!F2:F15) -> 2232 | G2: =SUM('Raw Data'!G2:G15) -> 2896 | H2: =F2/G2 -> 0.770718232 | I2: =SUM('Raw Data'!H2:H15) -> 952 | J2: =SUM('Raw Data'!I2:I15) -> 12944 | K2: =SUM('Raw Data'!J2:J15) -> 4411 | L2: =SUM('Raw Data'!K2:K15) -> 2825 | M2: =SUM('Raw Data'!L2:L15) -> 856 | N2: =SUM('Raw Data'!M2:M15) -> 717 | O2: =SUM('Raw Data'!N2:N15) -> 1695 | T2: =A2 -> Nets | U2: =E2 -> 0.4570144222 | V2: =H2 -> 0.770718232 | W2: =I2/$B2 -> 1.013844515 | X2: =J2/$B2 -> 13.78487753 | Y2: 4.697550586 | Z2: 3.008519702 | AA2: 0.9116080937 | AB2: 0.7635782748 | AC2: 1.805111821 | AF2: Date Updated: | AG2: 2013-04-15
A3: Kings | B3: =SUM('Raw Data'!C17:C30) -> 924 | C3: =SUM('Raw Data'!D17:D30) -> 4025 | D3: =SUM('Raw Data'!E17:E30) -> 8915 | E3: =C3/D3 -> 0.4514862591 | F3: =SUM('Raw Data'!F17:F30) -> 2094 | G3: =SUM('Raw Data'!G17:G30) -> 2668 | H3: =F3/G3 -> 0.7848575712 | I3: =SUM('Raw Data'!H17:H30) -> 697 | J3: =SUM('Raw Data'!I17:I30) -> 10841 | K3: =SUM('Raw Data'!J17:J30) -> 3948 | L3: =SUM('Raw Data'!K17:K30) -> 2556 | M3: =SUM('Raw Data'!L17:L30) -> 777 | N3: =SUM('Raw Data'!M17:M30) -> 472 | O3: =SUM('Raw Data'!N17:N30) -> 1509 | T3: Kings | U3: =E3 -> 0.4514862591 | V3: =H3 -> 0.7848575712 | W3: =I3/$B3 -> 0.7543290043 | X3: 11.73268398 | Y3: 4.272727273 | Z3: 2.766233766 | AA3: 0.8409090909 | AB3: 0.5108225108 | AC3: 1.633116883
A4: Clippers | B4: =SUM('Raw Data'!C32:C45) -> 1012 | C4: =SUM('Raw Data'!D32:D45) -> 4664 | D4: =SUM('Raw Data'!E32:E45) -> 9639 | E4: 0.4838676211 | F4: =SUM('Raw Data'!F32:F45) -> 2354 | G4: =SUM('Raw Data'!G32:G45) -> 3201 | H4: 0.735395189 | I4: =SUM('Raw Data'!H32:H45) -> 737 | J4: =SUM('Raw Data'!I32:I45) -> 12419 | K4: =SUM('Raw Data'!J32:J45) -> 5577 | L4: =SUM('Raw Data'!K32:K45) -> 3144 | M4: =SUM('Raw Data'!L32:L45) -> 1025 | N4: =SUM('Raw Data'!M32:M45) -> 761 | O4: =SUM('Raw Data'!N32:N45) -> 1903 | T4: Clippers | U4: 0.4838676211 | V4: 0.735395189 | W4: 0.7282608696 | X4: 12.27173913 | Y4: 5.510869565 | Z4: 3.106719368 | AA4: 1.01284585 | AB4: 0.7519762846 | AC4: 1.880434783
A5: Trailblazers | B5: =SUM('Raw Data'!C47:C60) -> 992 | C5: =SUM('Raw Data'!D47:D60) -> 4240 | D5: =SUM('Raw Data'!E47:E60) -> 9481 | E5: 0.4472102099 | F5: =SUM('Raw Data'!F47:F60) -> 1825 | G5: =SUM('Raw Data'!G47:G60) -> 2350 | H5: 0.7765957447 | I5: =SUM('Raw Data'!H47:H60) -> 960 | J5: =SUM('Raw Data'!I47:I60) -> 11265 | K5: =SUM('Raw Data'!J47:J60) -> 5425 | L5: =SUM('Raw Data'!K47:K60) -> 3203 | M5: =SUM('Raw Data'!L47:L60) -> 808 | N5: =SUM('Raw Data'!M47:M60) -> 483 | O5: =SUM('Raw Data'!N47:N60) -> 1764 | T5: Trailblazers | U5: 0.4472102099 | V5: 0.7765957447 | W5: 0.9677419355 | X5: 11.35584677 | Y5: 5.46875 | Z5: 3.228830645 | AA5: 0.814516129 | AB5: 0.4868951613 | AC5: 1.778225806
A6: Hawks | B6: =SUM('Raw Data'!C62:C75) -> 992 | C6: =SUM('Raw Data'!D62:D75) -> 4550 | D6: =SUM('Raw Data'!E62:E75) -> 10005 | E6: 0.4547726137 | F6: =SUM('Raw Data'!F62:F75) -> 2013 | G6: =SUM('Raw Data'!G62:G75) -> 2630 | H6: 0.7653992395 | I6: =SUM('Raw Data'!H62:H75) -> 830 | J6: =SUM('Raw Data'!I62:I75) -> 11943 | K6: =SUM('Raw Data'!J62:J75) -> 4685 | L6: =SUM('Raw Data'!K62:K75) -> 2509 | M6: =SUM('Raw Data'!L62:L75) -> 901 | N6: =SUM('Raw Data'!M62:M75) -> 484 | O6: =SUM('Raw Data'!N62:N75) -> 1514 | T6: Hawks | U6: 0.4547726137 | V6: 0.7653992395 | W6: 0.8366935484 | X6: 12.03931452 | Y6: 4.722782258 | Z6: 2.529233871 | AA6: 0.908266129 | AB6: 0.4879032258 | AC6: 1.526209677
A7: Celtics | B7: =SUM('Raw Data'!C77:C90) -> 986 | C7: =SUM('Raw Data'!D77:D90) -> 4414 | D7: =SUM('Raw Data'!E77:E90) -> 9666 | E7: 0.4566521829 | F7: =SUM('Raw Data'!F77:F90) -> 1884 | G7: =SUM('Raw Data'!G77:G90) -> 2456 | H7: 0.7671009772 | I7: =SUM('Raw Data'!H77:H90) -> 726 | J7: =SUM('Raw Data'!I77:I90) -> 11438 | K7: =SUM('Raw Data'!J77:J90) -> 5068 | L7: =SUM('Raw Data'!K77:K90) -> 2574 | M7: =SUM('Raw Data'!L77:L90) -> 1003 | N7: =SUM('Raw Data'!M77:M90) -> 865 | O7: =SUM('Raw Data'!N77:N90) -> 1687 | T7: Celtics | U7: 0.4566521829 | V7: 0.7671009772 | W7: 0.7363083164 | X7: 11.60040568 | Y7: 5.139959432 | Z7: 2.610547667 | AA7: 1.017241379 | AB7: 0.8772819473 | AC7: 1.710953347
A8: Nuggets | B8: =SUM('Raw Data'!C92:C105) -> 914 | C8: =SUM('Raw Data'!D92:D105) -> 4234 | D8: =SUM('Raw Data'!E92:E105) -> 9400 | E8: 0.4504255319 | F8: =SUM('Raw Data'!F92:F105) -> 1882 | G8: =SUM('Raw Data'!G92:G105) -> 2482 | H8: 0.7582594682 | I8: =SUM('Raw Data'!H92:H105) -> 805 | J8: =SUM('Raw Data'!I92:I105) -> 11155 | K8: =SUM('Raw Data'!J92:J105) -> 4375 | L8: =SUM('Raw Data'!K92:K105) -> 2177 | M8: =SUM('Raw Data'!L92:L105) -> 795 | N8: =SUM('Raw Data'!M92:M105) -> 501 | O8: =SUM('Raw Data'!N92:N105) -> 1574 | T8: Nuggets | U8: 0.4504255319 | V8: 0.7582594682 | W8: 0.8807439825 | X8: 12.20459519 | Y8: 4.786652079 | Z8: 2.381838074 | AA8: 0.8698030635 | AB8: 0.5481400438 | AC8: 1.722100656
A9: Thunder | B9: =SUM('Raw Data'!C107:C120) -> 973 | C9: =SUM('Raw Data'!D107:D120) -> 5216 | D9: =SUM('Raw Data'!E107:E120) -> 11144 | E9: 0.4680545585 | F9: =SUM('Raw Data'!F107:F120) -> 2342 | G9: =SUM('Raw Data'!G107:G120) -> 2921 | H9: 0.8017802123 | I9: =SUM('Raw Data'!H107:H120) -> 755 | J9: =SUM('Raw Data'!I107:I120) -> 13529 | K9: =SUM('Raw Data'!J107:J120) -> 4642 | L9: =SUM('Raw Data'!K107:K120) -> 2733 | M9: =SUM('Raw Data'!L107:L120) -> 876 | N9: =SUM('Raw Data'!M107:M120) -> 510 | O9: =SUM('Raw Data'!N107:N120) -> 1691 | T9: Thunder | U9: 0.4680545585 | V9: 0.8017802123 | W9: 0.775950668 | X9: 13.90441932 | Y9: 4.770811922 | Z9: 2.808838643 | AA9: 0.9003083248 | AB9: 0.5241521069 | AC9: 1.737923947
A10: Warriors | B10: =SUM('Raw Data'!C122:C135) -> 971 | C10: =SUM('Raw Data'!D122:D135) -> 5220 | D10: =SUM('Raw Data'!E122:E135) -> 11462 | E10: 0.4554179026 | F10: =SUM('Raw Data'!F122:F135) -> 2424 | G10: =SUM('Raw Data'!G122:G135) -> 3173 | H10: 0.7639457926 | I10: =SUM('Raw Data'!H122:H135) -> 719 | J10: =SUM('Raw Data'!I122:I135) -> 13583 | K10: =SUM('Raw Data'!J122:J135) -> 5202 | L10: =SUM('Raw Data'!K122:K135) -> 2810 | M10: =SUM('Raw Data'!L122:L135) -> 1148 | N10: =SUM('Raw Data'!M122:M135) -> 435 | O10: =SUM('Raw Data'!N122:N135) -> 1839 | T10: Warriors | U10: 0.4554179026 | V10: 0.7639457926 | W10: 0.7404737384 | X10: 13.98867147 | Y10: 5.357363543 | Z10: 2.89392379 | AA10: 1.182286303 | AB10: 0.4479917611 | AC10: 1.89392379
A11: Knicks | B11: =SUM('Raw Data'!C137:C150) -> 1026 | C11: =SUM('Raw Data'!D137:D150) -> 4400 | D11: =SUM('Raw Data'!E137:E150) -> 9711 | E11: 0.453094429 | F11: =SUM('Raw Data'!F137:F150) -> 2426 | G11: =SUM('Raw Data'!G137:G150) -> 3380 | H11: 0.7177514793 | I11: =SUM('Raw Data'!H137:H150) -> 876 | J11: =SUM('Raw Data'!I137:I150) -> 12102 | K11: =SUM('Raw Data'!J137:J150) -> 5302 | L11: =SUM('Raw Data'!K137:K150) -> 2182 | M11: =SUM('Raw Data'!L137:L150) -> 941 | N11: =SUM('Raw Data'!M137:M150) -> 543 | O11: =SUM('Raw Data'!N137:N150) -> 1584 | T11: Knicks | U11: 0.453094429 | V11: 0.7177514793 | W11: 0.8538011696 | X11: 11.79532164 | Y11: 5.167641326 | Z11: 2.126705653 | AA11: 0.9171539961 | AB11: 0.5292397661 | AC11: 1.543859649
A12: Mavericks | B12: =SUM('Raw Data'!C152:C165) -> 887 | C12: =SUM('Raw Data'!D152:D165) -> 3257 | D12: =SUM('Raw Data'!E152:E165) -> 7341 | E12: 0.4436725242 | F12: =SUM('Raw Data'!F152:F165) -> 1194 | G12: =SUM('Raw Data'!G152:G165) -> 1522 | H12: 0.7844940867 | I12: =SUM('Raw Data'!H152:H165) -> 981 | J12: =SUM('Raw Data'!I152:I165) -> 8689 | K12: =SUM('Raw Data'!J152:J165) -> 3410 | L12: =SUM('Raw Data'!K152:K165) -> 2272 | M12: =SUM('Raw Data'!L152:L165) -> 634 | N12: =SUM('Raw Data'!M152:M165) -> 412 | O12: =SUM('Raw Data'!N152:N165) -> 1138 | T12: Mavericks | U12: 0.4436725242 | V12: 0.7844940867 | W12: 1.105975197 | X12: 9.795941375 | Y12: 3.844419391 | Z12: 2.561443067 | AA12: 0.7147688839 | AB12: 0.4644870349 | AC12: 1.282976325
A13: Heat | B13: =SUM('Raw Data'!C167:C180) -> 1000 | C13: =SUM('Raw Data'!D167:D180) -> 5112 | D13: =SUM('Raw Data'!E167:E180) -> 11212 | E13: 0.4559400642 | F13: =SUM('Raw Data'!F167:F180) -> 2510 | G13: =SUM('Raw Data'!G167:G180) -> 3200 | H13: 0.784375 | I13: =SUM('Raw Data'!H167:H180) -> 918 | J13: =SUM('Raw Data'!I167:I180) -> 13652 | K13: =SUM('Raw Data'!J167:J180) -> 5735 | L13: =SUM('Raw Data'!K167:K180) -> 3281 | M13: =SUM('Raw Data'!L167:L180) -> 1035 | N13: =SUM('Raw Data'!M167:M180) -> 516 | O13: =SUM('Raw Data'!N167:N180) -> 1854 | T13: Heat | U13: 0.4559400642 | V13: 0.784375 | W13: 0.918 | X13: 13.652 | Y13: 5.735 | Z13: 3.281 | AA13: 1.035 | AB13: 0.516 | AC13: 1.854
A14: Jazz | B14: =SUM('Raw Data'!C182:C195) -> 854 | C14: =SUM('Raw Data'!D182:D195) -> 4129 | D14: =SUM('Raw Data'!E182:E195) -> 8915 | E14: 0.463151991 | F14: =SUM('Raw Data'!F182:F195) -> 1793 | G14: =SUM('Raw Data'!G182:G195) -> 2415 | H14: 0.7424430642 | I14: =SUM('Raw Data'!H182:H195) -> 618 | J14: =SUM('Raw Data'!I182:I195) -> 10669 | K14: =SUM('Raw Data'!J182:J195) -> 4005 | L14: =SUM('Raw Data'!K182:K195) -> 2558 | M14: =SUM('Raw Data'!L182:L195) -> 824 | N14: =SUM('Raw Data'!M182:M195) -> 535 | O14: =SUM('Raw Data'!N182:N195) -> 1498 | T14: Jazz | U14: 0.463151991 | V14: 0.7424430642 | W14: 0.7236533958 | X14: 12.49297424 | Y14: 4.68969555 | Z14: 2.995316159 | AA14: 0.9648711944 | AB14: 0.6264637002 | AC14: 1.754098361
A15: Bulls | B15: =SUM('Raw Data'!C197:C210) -> 863 | C15: =SUM('Raw Data'!D197:D210) -> 3886 | D15: =SUM('Raw Data'!E197:E210) -> 8334 | E15: 0.4662826974 | F15: =SUM('Raw Data'!F197:F210) -> 2120 | G15: =SUM('Raw Data'!G197:G210) -> 2701 | H15: 0.7848944835 | I15: =SUM('Raw Data'!H197:H210) -> 700 | J15: =SUM('Raw Data'!I197:I210) -> 10592 | K15: =SUM('Raw Data'!J197:J210) -> 4325 | L15: =SUM('Raw Data'!K197:K210) -> 2072 | M15: =SUM('Raw Data'!L197:L210) -> 758 | N15: =SUM('Raw Data'!M197:M210) -> 652 | O15: =SUM('Raw Data'!N197:N210) -> 1468 | T15: Bulls | U15: 0.4662826974 | V15: 0.7848944835 | W15: 0.8111239861 | X15: 12.27346466 | Y15: 5.011587486 | Z15: 2.400926999 | AA15: 0.8783314021 | AB15: 0.7555040556 | AC15: 1.701042874
A16: Suns | B16: =SUM('Raw Data'!C212:C225) -> 956 | C16: =SUM('Raw Data'!D212:D225) -> 4339 | D16: =SUM('Raw Data'!E212:E225) -> 9457 | E16: 0.4588135772 | F16: =SUM('Raw Data'!F212:F225) -> 1697 | G16: =SUM('Raw Data'!G212:G225) -> 2209 | H16: 0.7682209144 | I16: =SUM('Raw Data'!H212:H225) -> 1162 | J16: =SUM('Raw Data'!I212:I225) -> 11537 | K16: =SUM('Raw Data'!J212:J225) -> 4393 | L16: =SUM('Raw Data'!K212:K225) -> 2661 | M16: =SUM('Raw Data'!L212:L225) -> 767 | N16: =SUM('Raw Data'!M212:M225) -> 600 | O16: =SUM('Raw Data'!N212:N225) -> 1552 | T16: Suns | U16: 0.4588135772 | V16: 0.7682209144 | W16: 1.215481172 | X16: 12.06799163 | Y16: 4.595188285 | Z16: 2.783472803 | AA16: 0.8023012552 | AB16: 0.6276150628 | AC16: 1.623430962
A17: Lakers | B17: =SUM('Raw Data'!C227:C240) -> 1052 | C17: =SUM('Raw Data'!D227:D240) -> 4402 | D17: =SUM('Raw Data'!E227:E240) -> 9264 | E17: =C17/D17 -> 0.4751727116 | F17: =SUM('Raw Data'!F227:F240) -> 2364 | G17: =SUM('Raw Data'!G227:G240) -> 3075 | H17: =F17/G17 -> 0.7687804878 | I17: =SUM('Raw Data'!H227:H240) -> 678 | J17: =SUM('Raw Data'!I227:I240) -> 11846 | K17: =SUM('Raw Data'!J227:J240) -> 5844 | L17: =SUM('Raw Data'!K227:K240) -> 2266 | M17: =SUM('Raw Data'!L227:L240) -> 1148 | N17: =SUM('Raw Data'!M227:M240) -> 909 | O17: =SUM('Raw Data'!N227:N240) -> 1579 | T17: Lakers | U17: 0.4751727116 | V17: 0.7687804878 | W17: 0.644486692 | X17: 11.26045627 | Y17: 5.55513308 | Z17: 2.153992395 | AA17: 1.091254753 | AB17: 0.8640684411 | AC17: 1.50095057
A19: Ranks | T19: Ranks (per game played)
A20: Team | E20: FG% | H20: FT% | I20: 3PTM | J20: PTS | K20: REB | L20: AST | M20: ST | N20: BLK | O20: TO | P20: Total | Q20: Rank | T20: Team | U20: FG% | V20: FT% | W20: 3PTM | X20: PTS | Y20: REB | Z20: AST | AA20: ST | AB20: BLK | AC20: TO | AD20: Total | AE20: Rank
A21: =A13 -> Heat | E21: =RANK(E13,E$2:E$17,0) -> 9 | H21: =RANK(H13,H$2:H$17,0) -> 5 | I21: 5 | J21: 1 | K21: 2 | L21: 1 | M21: 3 | N21: 9 | O21: =RANK(O13,O$2:O$17,1) -> 15 | P21: =SUM(E21:O21) -> 50 | Q21: =RANK(P21,P$21:P$36,1) -> 1 | T21: =A13 -> Heat | U21: =RANK(U13,U$2:U$17,0) -> 9 | V21: 5 | W21: 5 | X21: 4 | Y21: 1 | Z21: 1 | AA21: 3 | AB21: 11 | AC21: =RANK(AC13,AC$2:AC$17,1) -> 14 | AD21: =SUM(U21:AC21) -> 53 | AE21: =RANK(AD21,AD$21:AD$36,1) -> 1
A22: =A17 -> Lakers | E22: =RANK(E17,E$2:E$17,0) -> 2 | H22: =RANK(H17,H$2:H$17,0) -> 8 | I22: 15 | J22: 8 | K22: 1 | L22: 13 | M22: 1 | N22: 1 | O22: =RANK(O17,O$2:O$17,1) -> 8 | P22: =SUM(E22:O22) -> 57 | Q22: =RANK(P22,P$21:P$36,1) -> 2 | T22: =A2 -> Nets | U22: =RANK(U2,U$2:U$17,0) -> 7 | V22: 7 | W22: 3 | X22: 3 | Y22: 12 | Z22: 4 | AA22: 8 | AB22: 3 | AC22: =RANK(AC2,AC$2:AC$17,1) -> 13 | AD22: =SUM(U22:AC22) -> 60 | AE22: =RANK(AD22,AD$21:AD$36,1) -> 2
A23: =A9 -> Thunder | E23: =RANK(E9,E$2:E$17,0) -> 3 | H23: =RANK(H9,H$2:H$17,0) -> 1 | I23: 9 | J23: 3 | K23: 9 | L23: 6 | M23: 8 | N23: 10 | O23: =RANK(O9,O$2:O$17,1) -> 11 | P23: 60 | Q23: 3 | T23: =A9 -> Thunder | U23: =RANK(U9,U$2:U$17,0) -> 3 | V23: 1 | W23: 10 | X23: 2 | Y23: 10 | Z23: 7 | AA23: 10 | AB23: 10 | AC23: =RANK(AC9,AC$2:AC$17,1) -> 10 | AD23: 63 | AE23: 3
A24: =A4 -> Clippers | E24: =RANK(E4,E$2:E$17,0) -> 1 | H24: =RANK(H4,H$2:H$17,0) -> 15 | I24: 10 | J24: 5 | K24: 3 | L24: 3 | M24: 4 | N24: 3 | O24: =RANK(O4,O$2:O$17,1) -> 16 | P24: 60 | Q24: 3 | T24: =A17 -> Lakers | U24: =RANK(U17,U$2:U$17,0) -> 2 | V24: 8 | W24: 16 | X24: 15 | Y24: 2 | Z24: 15 | AA24: 2 | AB24: 2 | AC24: =RANK(AC17,AC$2:AC$17,1) -> 2 | AD24: 64 | AE24: 4
A25: =A2 -> Nets | E25: =RANK(E2,E$2:E$17,0) -> 7 | H25: =RANK(H2,H$2:H$17,0) -> 7 | I25: 4 | J25: 4 | K25: 10 | L25: 4 | M25: 9 | N25: 4 | O25: =RANK(O2,O$2:O$17,1) -> 12 | P25: 61 | Q25: 5 | T25: =A15 -> Bulls | U25: =RANK(U15,U$2:U$17,0) -> 4 | V25: 2 | W25: 9 | X25: 6 | Y25: 8 | Z25: 13 | AA25: 11 | AB25: 4 | AC25: =RANK(AC15,AC$2:AC$17,1) -> 7 | AD25: 64 | AE25: 4
A26: =A16 -> Suns | E26: =RANK(E16,E$2:E$17,0) -> 6 | H26: =RANK(H16,H$2:H$17,0) -> 9 | I26: 1 | J26: 9 | K26: 11 | L26: 7 | M26: 14 | N26: 6 | O26: =RANK(O16,O$2:O$17,1) -> 6 | P26: 69 | Q26: 6 | T26: =A4 -> Clippers | U26: =RANK(U4,U$2:U$17,0) -> 1 | V26: 15 | W26: 14 | X26: 7 | Y26: 3 | Z26: 3 | AA26: 5 | AB26: 5 | AC26: =RANK(AC4,AC$2:AC$17,1) -> 15 | AD26: 68 | AE26: 6
A27: =A7 -> Celtics | E27: =RANK(E7,E$2:E$17,0) -> 8 | H27: =RANK(H7,H$2:H$17,0) -> 10 | I27: 11 | J27: 10 | K27: 7 | L27: 8 | M27: 5 | N27: 2 | O27: =RANK(O7,O$2:O$17,1) -> 10 | P27: 71 | Q27: 7 | T27: =A16 -> Suns | U27: =RANK(U16,U$2:U$17,0) -> 6 | V27: 9 | W27: 1 | X27: 9 | Y27: 14 | Z27: 8 | AA27: 15 | AB27: 6 | AC27: =RANK(AC16,AC$2:AC$17,1) -> 5 | AD27: 73 | AE27: 7
A28: =A10 -> Warriors | E28: =RANK(E10,E$2:E$17,0) -> 10 | H28: =RANK(H10,H$2:H$17,0) -> 12 | I28: 12 | J28: 2 | K28: 6 | L28: 5 | M28: 1 | N28: 15 | O28: =RANK(O10,O$2:O$17,1) -> 14 | P28: 77 | Q28: 8 | T28: =A7 -> Celtics | U28: =RANK(U7,U$2:U$17,0) -> 8 | V28: 10 | W28: 13 | X28: 13 | Y28: 7 | Z28: 10 | AA28: 4 | AB28: 1 | AC28: =RANK(AC7,AC$2:AC$17,1) -> 8 | AD28: 74 | AE28: 8
A29: =A5 -> Trailblazers | E29: =RANK(E5,E$2:E$17,0) -> 15 | H29: =RANK(H5,H$2:H$17,0) -> 6 | I29: 3 | J29: 11 | K29: 4 | L29: 2 | M29: 11 | N29: 13 | O29: =RANK(O5,O$2:O$17,1) -> 13 | P29: 78 | Q29: 9 | T29: =A10 -> Warriors | U29: =RANK(U10,U$2:U$17,0) -> 10 | V29: 12 | W29: 12 | X29: 1 | Y29: 5 | Z29: 6 | AA29: 1 | AB29: 16 | AC29: =RANK(AC10,AC$2:AC$17,1) -> 16 | AD29: 79 | AE29: 9
A30: =A6 -> Hawks | E30: =RANK(E6,E$2:E$17,0) -> 11 | H30: 11 | I30: 7 | J30: 7 | K30: 8 | L30: 11 | M30: 7 | N30: 12 | O30: =RANK(O6,O$2:O$17,1) -> 5 | P30: 79 | Q30: 10 | T30: =A14 -> Jazz | U30: =RANK(U14,U$2:U$17,0) -> 5 | V30: 14 | W30: 15 | X30: 5 | Y30: 13 | Z30: 5 | AA30: 6 | AB30: 7 | AC30: =RANK(AC14,AC$2:AC$17,1) -> 11 | AD30: 81 | AE30: 10
A31: =A11 -> Knicks | E31: =RANK(E11,E$2:E$17,0) -> 12 | H31: =RANK(H11,H$2:H$17,0) -> 16 | I31: 6 | J31: 6 | K31: 5 | L31: 14 | M31: 6 | N31: 7 | O31: =RANK(O11,O$2:O$17,1) -> 9 | P31: 81 | Q31: 11 | T31: =A5 -> Trailblazers | U31: =RANK(U5,U$2:U$17,0) -> 15 | V31: 6 | W31: 4 | X31: 14 | Y31: 4 | Z31: 2 | AA31: 14 | AB31: 14 | AC31: =RANK(AC5,AC$2:AC$17,1) -> 12 | AD31: 85 | AE31: 11
A32: =A15 -> Bulls | E32: =RANK(E15,E$2:E$17,0) -> 4 | H32: =RANK(H15,H$2:H$17,0) -> 2 | I32: 13 | J32: 15 | K32: 13 | L32: 16 | M32: 15 | N32: 5 | O32: =RANK(O15,O$2:O$17,1) -> 2 | P32: 85 | Q32: 12 | T32: =A6 -> Hawks | U32: 11 | V32: 11 | W32: 8 | X32: 10 | Y32: 11 | Z32: 12 | AA32: 9 | AB32: 13 | AC32: =RANK(AC6,AC$2:AC$17,1) -> 3 | AD32: 88 | AE32: 12
A33: =A14 -> Jazz | E33: =RANK(E14,E$2:E$17,0) -> 5 | H33: =RANK(H14,H$2:H$17,0) -> 14 | I33: 16 | J33: 14 | K33: 14 | L33: 9 | M33: 10 | N33: 8 | O33: =RANK(O14,O$2:O$17,1) -> 3 | P33: 93 | Q33: 13 | T33: =A11 -> Knicks | U33: =RANK(U11,U$2:U$17,0) -> 12 | V33: 16 | W33: 7 | X33: 11 | Y33: 6 | Z33: 16 | AA33: 7 | AB33: 9 | AC33: =RANK(AC11,AC$2:AC$17,1) -> 4 | AD33: 88 | AE33: 12
A34: =A3 -> Kings | E34: =RANK(E3,E$2:E$17,0) -> 13 | H34: =RANK(H3,H$2:H$17,0) -> 3 | I34: 14 | J34: 13 | K34: 15 | L34: 10 | M34: 13 | N34: 14 | O34: =RANK(O3,O$2:O$17,1) -> 4 | P34: 99 | Q34: 14 | T34: =A8 -> Nuggets | U34: =RANK(U8,U$2:U$17,0) -> 14 | V34: 13 | W34: 6 | X34: 8 | Y34: 9 | Z34: 14 | AA34: 12 | AB34: 8 | AC34: =RANK(AC8,AC$2:AC$17,1) -> 9 | AD34: 93 | AE34: 14
A35: =A12 -> Mavericks | E35: =RANK(E12,E$2:E$17,0) -> 16 | H35: =RANK(H12,H$2:H$17,0) -> 4 | I35: 2 | J35: 16 | K35: 16 | L35: 12 | M35: 16 | N35: 16 | O35: =RANK(O12,O$2:O$17,1) -> 1 | P35: 99 | Q35: 14 | T35: =A3 -> Kings | U35: =RANK(U3,U$2:U$17,0) -> 13 | V35: 3 | W35: 11 | X35: 12 | Y35: 15 | Z35: 9 | AA35: 13 | AB35: 12 | AC35: =RANK(AC3,AC$2:AC$17,1) -> 6 | AD35: 94 | AE35: 15
A36: =A8 -> Nuggets | E36: =RANK(E8,E$2:E$17,0) -> 14 | H36: =RANK(H8,H$2:H$17,0) -> 13 | I36: 8 | J36: 12 | K36: 12 | L36: 15 | M36: 12 | N36: 11 | O36: =RANK(O8,O$2:O$17,1) -> 7 | P36: 104 | Q36: 16 | T36: =A12 -> Mavericks | U36: =RANK(U12,U$2:U$17,0) -> 16 | V36: 4 | W36: 2 | X36: 16 | Y36: 16 | Z36: 11 | AA36: 16 | AB36: 15 | AC36: =RANK(AC12,AC$2:AC$17,1) -> 1 | AD36: 97 | AE36: 16
A38: Matchups | T38: Matchups (per game played)
A39: Team | B39: FG% | C39: FT% | D39: 3PTM | E39: PTS | F39: REB | G39: AST | H39: ST | I39: BLK | J39: TO | K39: Score | T39: Team | U39: FG% | V39: FT% | W39: 3PTM | X39: PTS | Y39: REB | Z39: AST | AA39: ST | AB39: BLK | AC39: TO | AD39: Score
A40: Lakers | B40: 0.4751727116 | C40: 0.7687804878 | D40: 678 | E40: 11846 | F40: 5844 | G40: 2266 | H40: 1148 | I40: 909 | J40: 1579 | K40: 5 | T40: Lakers | U40: 0.4751727116 | V40: 0.7687804878 | W40: 0.644486692 | X40: 11.26045627 | Y40: 5.55513308 | Z40: 2.153992395 | AA40: 1.091254753 | AB40: 0.8640684411 | AC40: 1.50095057 | AD40: 5
A41: Nets | B41: 0.4570144222 | C41: 0.770718232 | D41: 952 | E41: 12944 | F41: 4411 | G41: 2825 | H41: 856 | I41: 717 | J41: 1695 | K41: 4 | T41: Nets | U41: 0.4570144222 | V41: 0.770718232 | W41: 1.013844515 | X41: 13.78487753 | Y41: 4.697550586 | Z41: 3.008519702 | AA41: 0.9116080937 | AB41: 0.7635782748 | AC41: 1.805111821 | AD41: 4
A43: Lakers | B43: 0.4751727116 | C43: 0.7687804878 | D43: 678 | E43: 11846 | F43: 5844 | G43: 2266 | H43: 1148 | I43: 909 | J43: 1579 | K43: 5 | T43: Lakers | U43: 0.4751727116 | V43: 0.7687804878 | W43: 0.644486692 | X43: 11.26045627 | Y43: 5.55513308 | Z43: 2.153992395 | AA43: 1.091254753 | AB43: 0.8640684411 | AC43: 1.50095057 | AD43: 5
A44: Kings | B44: 0.4514862591 | C44: 0.7848575712 | D44: 697 | E44: 10841 | F44: 3948 | G44: 2556 | H44: 777 | I44: 472 | J44: 1509 | K44: 4 | T44: Kings | U44: 0.4514862591 | V44: 0.7848575712 | W44: 0.7543290043 | X44: 11.73268398 | Y44: 4.272727273 | Z44: 2.766233766 | AA44: 0.8409090909 | AB44: 0.5108225108 | AC44: 1.633116883 | AD44: 4
A46: Lakers | B46: 0.4751727116 | C46: 0.7687804878 | D46: 678 | E46: 11846 | F46: 5844 | G46: 2266 | H46: 1148 | I46: 909 | J46: 1579 | K46: 5 | T46: Lakers | U46: 0.4751727116 | V46: 0.7687804878 | W46: 0.644486692 | X46: 11.26045627 | Y46: 5.55513308 | Z46: 2.153992395 | AA46: 1.091254753 | AB46: 0.8640684411 | AC46: 1.50095057 | AD46: 5
A47: Clippers | B47: 0.4838676211 | C47: 0.735395189 | D47: 737 | E47: 12419 | F47: 5577 | G47: 3144 | H47: 1025 | I47: 761 | J47: 1903 | K47: 4 | T47: Clippers | U47: 0.4838676211 | V47: 0.735395189 | W47: 0.7282608696 | X47: 12.27173913 | Y47: 5.510869565 | Z47: 3.106719368 | AA47: 1.01284585 | AB47: 0.7519762846 | AC47: 1.880434783 | AD47: 4
A49: Lakers | B49: 0.4751727116 | C49: 0.7687804878 | D49: 678 | E49: 11846 | F49: 5844 | G49: 2266 | H49: 1148 | I49: 909 | J49: 1579 | K49: 6 | T49: Lakers | U49: 0.4751727116 | V49: 0.7687804878 | W49: 0.644486692 | X49: 11.26045627 | Y49: 5.55513308 | Z49: 2.153992395 | AA49: 1.091254753 | AB49: 0.8640684411 | AC49: 1.50095057 | AD49: 5
A50: Trailblazers | B50: 0.4472102099 | C50: 0.7765957447 | D50: 960 | E50: 11265 | F50: 5425 | G50: 3203 | H50: 808 | I50: 483 | J50: 1764 | K50: 3 | T50: Trailblazers | U50: 0.4472102099 | V50: 0.7765957447 | W50: 0.9677419355 | X50: 11.35584677 | Y50: 5.46875 | Z50: 3.228830645 | AA50: 0.814516129 | AB50: 0.4868951613 | AC50: 1.778225806 | AD50: 4
A52: Lakers | B52: 0.4751727116 | C52: 0.7687804878 | D52: 678 | E52: 11846 | F52: 5844 | G52: 2266 | H52: 1148 | I52: 909 | J52: 1579 | K52: 5 | T52: Lakers | U52: 0.4751727116 | V52: 0.7687804878 | W52: 0.644486692 | X52: 11.26045627 | Y52: 5.55513308 | Z52: 2.153992395 | AA52: 1.091254753 | AB52: 0.8640684411 | AC52: 1.50095057 | AD52: 6
A53: Hawks | B53: 0.4547726137 | C53: 0.7653992395 | D53: 830 | E53: 11943 | F53: 4685 | G53: 2509 | H53: 901 | I53: 484 | J53: 1514 | K53: 4 | T53: Hawks | U53: 0.4547726137 | V53: 0.7653992395 | W53: 0.8366935484 | X53: 12.03931452 | Y53: 4.722782258 | Z53: 2.529233871 | AA53: 0.908266129 | AB53: 0.4879032258 | AC53: 1.526209677 | AD53: 3
A55: Lakers | B55: 0.4751727116 | C55: 0.7687804878 | D55: 678 | E55: 11846 | F55: 5844 | G55: 2266 | H55: 1148 | I55: 909 | J55: 1579 | K55: 7 | T55: Lakers | U55: 0.4751727116 | V55: 0.7687804878 | W55: 0.644486692 | X55: 11.26045627 | Y55: 5.55513308 | Z55: 2.153992395 | AA55: 1.091254753 | AB55: 0.8640684411 | AC55: 1.50095057 | AD55: 5
A56: Celtics | B56: 0.4566521829 | C56: 0.7671009772 | D56: 726 | E56: 11438 | F56: 5068 | G56: 2574 | H56: 1003 | I56: 865 | J56: 1687 | K56: 2 | T56: Celtics | U56: 0.4566521829 | V56: 0.7671009772 | W56: 0.7363083164 | X56: 11.60040568 | Y56: 5.139959432 | Z56: 2.610547667 | AA56: 1.017241379 | AB56: 0.8772819473 | AC56: 1.710953347 | AD56: 4
A58: Lakers | B58: 0.4751727116 | C58: 0.7687804878 | D58: 678 | E58: 11846 | F58: 5844 | G58: 2266 | H58: 1148 | I58: 909 | J58: 1579 | K58: 7 | T58: Lakers | U58: 0.4751727116 | V58: 0.7687804878 | W58: 0.644486692 | X58: 11.26045627 | Y58: 5.55513308 | Z58: 2.153992395 | AA58: 1.091254753 | AB58: 0.8640684411 | AC58: 1.50095057 | AD58: 6
A59: Nuggets | B59: 0.4504255319 | C59: 0.7582594682 | D59: 805 | E59: 11155 | F59: 4375 | G59: 2177 | H59: 795 | I59: 501 | J59: 1574 | K59: 2 | T59: Nuggets | U59: 0.4504255319 | V59: 0.7582594682 | W59: 0.8807439825 | X59: 12.20459519 | Y59: 4.786652079 | Z59: 2.381838074 | AA59: 0.8698030635 | AB59: 0.5481400438 | AC59: 1.722100656 | AD59: 3
A61: Lakers | B61: 0.4751727116 | C61: 0.7687804878 | D61: 678 | E61: 11846 | F61: 5844 | G61: 2266 | H61: 1148 | I61: 909 | J61: 1579 | K61: 5 | T61: Lakers | U61: 0.4751727116 | V61: 0.7687804878 | W61: 0.644486692 | X61: 11.26045627 | Y61: 5.55513308 | Z61: 2.153992395 | AA61: 1.091254753 | AB61: 0.8640684411 | AC61: 1.50095057 | AD61: 5
A62: Thunder | B62: 0.4680545585 | C62: 0.8017802123 | D62: 755 | E62: 13529 | F62: 4642 | G62: 2733 | H62: 876 | I62: 510 | J62: 1691 | K62: 4 | T62: Thunder | U62: 0.4680545585 | V62: 0.8017802123 | W62: 0.775950668 | X62: 13.90441932 | Y62: 4.770811922 | Z62: 2.808838643 | AA62: 0.9003083248 | AB62: 0.5241521069 | AC62: 1.737923947 | AD62: 4
A64: Lakers | B64: 0.4751727116 | C64: 0.7687804878 | D64: 678 | E64: 11846 | F64: 5844 | G64: 2266 | H64: 1148 | I64: 909 | J64: 1579 | K64: 5 | T64: Lakers | U64: 0.4751727116 | V64: 0.7687804878 | W64: 0.644486692 | X64: 11.26045627 | Y64: 5.55513308 | Z64: 2.153992395 | AA64: 1.091254753 | AB64: 0.8640684411 | AC64: 1.50095057 | AD64: 5
A65: Warriors | B65: 0.4554179026 | C65: 0.7639457926 | D65: 719 | E65: 13583 | F65: 5202 | G65: 2810 | H65: 1148 | I65: 435 | J65: 1839 | K65: 4 | T65: Warriors | U65: 0.4554179026 | V65: 0.7639457926 | W65: 0.7404737384 | X65: 13.98867147 | Y65: 5.357363543 | Z65: 2.89392379 | AA65: 1.182286303 | AB65: 0.4479917611 | AC65: 1.89392379 | AD65: 4
A67: Lakers | B67: 0.4751727116 | C67: 0.7687804878 | D67: 678 | E67: 11846 | F67: 5844 | G67: 2266 | H67: 1148 | I67: 909 | J67: 1579 | K67: 7 | T67: Lakers | U67: 0.4751727116 | V67: 0.7687804878 | W67: 0.644486692 | X67: 11.26045627 | Y67: 5.55513308 | Z67: 2.153992395 | AA67: 1.091254753 | AB67: 0.8640684411 | AC67: 1.50095057 | AD67: 7
A68: Knicks | B68: 0.453094429 | C68: 0.7177514793 | D68: 876 | E68: 12102 | F68: 5302 | G68: 2182 | H68: 941 | I68: 543 | J68: 1584 | K68: 2 | T68: Knicks | U68: 0.453094429 | V68: 0.7177514793 | W68: 0.8538011696 | X68: 11.79532164 | Y68: 5.167641326 | Z68: 2.126705653 | AA68: 0.9171539961 | AB68: 0.5292397661 | AC68: 1.543859649 | AD68: 2
A70: Lakers | B70: 0.4751727116 | C70: 0.7687804878 | D70: 678 | E70: 11846 | F70: 5844 | G70: 2266 | H70: 1148 | I70: 909 | J70: 1579 | K70: 5 | T70: Lakers | U70: 0.4751727116 | V70: 0.7687804878 | W70: 0.644486692 | X70: 11.26045627 | Y70: 5.55513308 | Z70: 2.153992395 | AA70: 1.091254753 | AB70: 0.8640684411 | AC70: 1.50095057 | AD70: 5
A71: Mavericks | B71: 0.4436725242 | C71: 0.7844940867 | D71: 981 | E71: 8689 | F71: 3410 | G71: 2272 | H71: 634 | I71: 412 | J71: 1138 | K71: 4 | T71: Mavericks | U71: 0.4436725242 | V71: 0.7844940867 | W71: 1.105975197 | X71: 9.795941375 | Y71: 3.844419391 | Z71: 2.561443067 | AA71: 0.7147688839 | AB71: 0.4644870349 | AC71: 1.282976325 | AD71: 4
A73: Lakers | B73: 0.4751727116 | C73: 0.7687804878 | D73: 678 | E73: 11846 | F73: 5844 | G73: 2266 | H73: 1148 | I73: 909 | J73: 1579 | K73: 5 | T73: Lakers | U73: 0.4751727116 | V73: 0.7687804878 | W73: 0.644486692 | X73: 11.26045627 | Y73: 5.55513308 | Z73: 2.153992395 | AA73: 1.091254753 | AB73: 0.8640684411 | AC73: 1.50095057 | AD73: 4
A74: Heat | B74: 0.4559400642 | C74: 0.784375 | D74: 918 | E74: 13652 | F74: 5735 | G74: 3281 | H74: 1035 | I74: 516 | J74: 1854 | K74: 4 | T74: Heat | U74: 0.4559400642 | V74: 0.784375 | W74: 0.918 | X74: 13.652 | Y74: 5.735 | Z74: 3.281 | AA74: 1.035 | AB74: 0.516 | AC74: 1.854 | AD74: 5
A76: Lakers | B76: 0.4751727116 | C76: 0.7687804878 | D76: 678 | E76: 11846 | F76: 5844 | G76: 2266 | H76: 1148 | I76: 909 | J76: 1579 | K76: 7 | T76: Lakers | U76: 0.4751727116 | V76: 0.7687804878 | W76: 0.644486692 | X76: 11.26045627 | Y76: 5.55513308 | Z76: 2.153992395 | AA76: 1.091254753 | AB76: 0.8640684411 | AC76: 1.50095057 | AD76: 6
A77: Jazz | B77: 0.463151991 | C77: 0.7424430642 | D77: 618 | E77: 10669 | F77: 4005 | G77: 2558 | H77: 824 | I77: 535 | J77: 1498 | K77: 2 | T77: Jazz | U77: 0.463151991 | V77: 0.7424430642 | W77: 0.7236533958 | X77: 12.49297424 | Y77: 4.68969555 | Z77: 2.995316159 | AA77: 0.9648711944 | AB77: 0.6264637002 | AC77: 1.754098361 | AD77: 3
A79: Lakers | B79: 0.4751727116 | C79: 0.7687804878 | D79: 678 | E79: 11846 | F79: 5844 | G79: 2266 | H79: 1148 | I79: 909 | J79: 1579 | K79: 6 | T79: Lakers | U79: 0.4751727116 | V79: 0.7687804878 | W79: 0.644486692 | X79: 11.26045627 | Y79: 5.55513308 | Z79: 2.153992395 | AA79: 1.091254753 | AB79: 0.8640684411 | AC79: 1.50095057 | AD79: 5
A80: Bulls | B80: 0.4662826974 | C80: 0.7848944835 | D80: 700 | E80: 10592 | F80: 4325 | G80: 2072 | H80: 758 | I80: 652 | J80: 1468 | K80: 3 | T80: Bulls | U80: 0.4662826974 | V80: 0.7848944835 | W80: 0.8111239861 | X80: 12.27346466 | Y80: 5.011587486 | Z80: 2.400926999 | AA80: 0.8783314021 | AB80: 0.7555040556 | AC80: 1.701042874 | AD80: 4
A82: Lakers | B82: 0.4751727116 | C82: 0.7687804878 | D82: 678 | E82: 11846 | F82: 5844 | G82: 2266 | H82: 1148 | I82: 909 | J82: 1579 | K82: 6 | T82: Lakers | U82: 0.4751727116 | V82: 0.7687804878 | W82: 0.644486692 | X82: 11.26045627 | Y82: 5.55513308 | Z82: 2.153992395 | AA82: 1.091254753 | AB82: 0.8640684411 | AC82: 1.50095057 | AD82: 6
A83: Suns | B83: 0.4588135772 | C83: 0.7682209144 | D83: 1162 | E83: 11537 | F83: 4393 | G83: 2661 | H83: 767 | I83: 600 | J83: 1552 | K83: 3 | T83: Suns | U83: 0.4588135772 | V83: 0.7682209144 | W83: 1.215481172 | X83: 12.06799163 | Y83: 4.595188285 | Z83: 2.783472803 | AA83: 0.8023012552 | AB83: 0.6276150628 | AC83: 1.623430962 | AD83: 3

Sheet Raw Data
A1: Player | B1: Team | C1: GP* | D1: FGM* | E1: FGA* | F1: FTM* | G1: FTA* | H1: 3PTM | I1: PTS | J1: REB | K1: AST | L1: ST | M1: BLK | N1: TO
A2: Brooklyn Nets | B2: Deron Williams | C2: 77 | D2: 493 | E2: 1119 | F2: 314 | G2: 366 | H2: 168 | I2: 1468 | J2: 231 | K2: 598 | L2: 74 | M2: 30 | N2: 216
A3: Brooklyn Nets | B3: Josh Smith | C3: 75 | D3: 548 | E3: 1177 | F3: 165 | G3: 319 | H3: 60 | I3: 1321 | J3: 636 | K3: 321 | L3: 94 | M3: 136 | N3: 225
A4: Brooklyn Nets | B4: Eric Gordon | C4: 41 | D4: 231 | E4: 567 | F4: 179 | G4: 213 | H4: 56 | I4: 697 | J4: 74 | K4: 134 | L4: 41 | M4: 7 | N4: 113
A5: Brooklyn Nets | B5: Ersan Ilyasova | C5: 72 | D5: 364 | E5: 790 | F5: 125 | G5: 157 | H5: 95 | I5: 948 | J5: 510 | K5: 116 | L5: 67 | M5: 36 | N5: 72
A6: Brooklyn Nets | B6: Brook Lopez | C6: 73 | D6: 563 | E6: 1079 | F6: 291 | G6: 386 | H6: 0 | I6: 1417 | J6: 503 | K6: 69 | L6: 32 | M6: 154 | N6: 130
A7: Brooklyn Nets | B7: J.R. Smith | C7: 80 | D7: 527 | E7: 1249 | F7: 237 | G7: 311 | H7: 155 | I7: 1446 | J7: 425 | K7: 218 | L7: 100 | M7: 24 | N7: 134
A8: Brooklyn Nets | B8: Darren Collison | C8: 79 | D8: 329 | E8: 704 | F8: 233 | G8: 261 | H8: 47 | I8: 938 | J8: 213 | K8: 407 | L8: 98 | M8: 7 | N8: 173
A9: Brooklyn Nets | B9: Spencer Hawes | C9: 80 | D9: 369 | E9: 796 | F9: 121 | G9: 156 | H9: 30 | I9: 889 | J9: 581 | K9: 180 | L9: 23 | M9: 111 | N9: 128
A10: Brooklyn Nets | B10: Luke Ridnour | C10: 80 | D10: 360 | E10: 794 | F10: 139 | G10: 164 | H10: 65 | I10: 924 | J10: 204 | K10: 302 | L10: 80 | M10: 15 | N10: 127
A11: Brooklyn Nets | B11: Jamal Crawford | C11: 74 | D11: 433 | E11: 992 | F11: 216 | G11: 248 | H11: 141 | I11: 1223 | J11: 125 | K11: 184 | L11: 76 | M11: 13 | N11: 144
A12: Brooklyn Nets | B12: Taj Gibson | C12: 63 | D12: 206 | E12: 423 | F12: 85 | G12: 125 | H12: 0 | I12: 497 | J12: 340 | K12: 59 | L12: 27 | M12: 87 | N12: 73
A13: Brooklyn Nets | B13: Matt Barnes | C13: 78 | D13: 304 | E13: 659 | F13: 86 | G13: 115 | H13: 111 | I13: 805 | J13: 356 | K13: 121 | L13: 82 | M13: 63 | N13: 88
A14: Brooklyn Nets | B14: Garrett Temple | C14: 49 | D14: 97 | E14: 236 | F14: 24 | G14: 35 | H14: 24 | I14: 242 | J14: 119 | K14: 108 | L14: 46 | M14: 17 | N14: 56
A15: Brooklyn Nets | B15: Kenyon Martin | C15: 18 | D15: 56 | E15: 93 | F15: 17 | G15: 40 | H15: 0 | I15: 129 | J15: 94 | K15: 8 | L15: 16 | M15: 17 | N15: 16
A17: Sacramento Kings | B17: Kobe Bryant | C17: 78 | D17: 738 | E17: 1595 | F17: 525 | G17: 626 | H17: 132 | I17: 2133 | J17: 433 | K17: 469 | L17: 106 | M17: 25 | N17: 287
A18: Sacramento Kings | B18: Ty Lawson | C18: 71 | D18: 435 | E18: 949 | F18: 224 | G18: 298 | H18: 82 | I18: 1176 | J18: 192 | K18: 487 | L18: 105 | M18: 8 | N18: 177
A19: Sacramento Kings | B19: Mike Conley | C19: 78 | D19: 406 | E19: 921 | F19: 231 | G19: 278 | H19: 105 | I19: 1148 | J19: 218 | K19: 478 | L19: 173 | M19: 23 | N19: 185
A20: Sacramento Kings | B20: Amar'e Stoudemire | C20: 29 | D20: 154 | E20: 267 | F20: 105 | G20: 130 | H20: 0 | I20: 413 | J20: 145 | K20: 13 | L20: 10 | M20: 21 | N20: 50
A21: Sacramento Kings | B21: Andrew Bogut | C21: 31 | D21: 82 | E21: 176 | F21: 19 | G21: 38 | H21: 1 | I21: 184 | J21: 237 | K21: 64 | L21: 20 | M21: 53 | N21: 33
A22: Sacramento Kings | B22: Michael Kidd-Gilchrist | C22: 76 | D22: 272 | E22: 599 | F22: 139 | G22: 185 | H22: 2 | I22: 685 | J22: 442 | K22: 112 | L22: 52 | M22: 70 | N22: 101
A23: Sacramento Kings | B23: Michael Beasley | C23: 73 | D23: 305 | E23: 747 | F23: 93 | G23: 124 | H23: 43 | I23: 746 | J23: 279 | K23: 110 | L23: 31 | M23: 33 | N23: 142
A24: Sacramento Kings | B24: Jordan Crawford | C24: 69 | D24: 295 | E24: 711 | F24: 127 | G24: 157 | H24: 81 | I24: 798 | J24: 203 | K24: 220 | L24: 38 | M24: 7 | N24: 139
A25: Sacramento Kings | B25: Nick Young | C25: 58 | D25: 224 | E25: 540 | F25: 105 | G25: 128 | H25: 75 | I25: 628 | J25: 130 | K25: 84 | L25: 36 | M25: 14 | N25: 49
A26: Sacramento Kings | B26: Ed Davis | C26: 79 | D26: 253 | E26: 465 | F26: 102 | G26: 166 | H26: 0 | I26: 608 | J26: 440 | K26: 62 | L26: 37 | M26: 81 | N26: 59
A27: Sacramento Kings | B27: Tayshaun Prince | C27: 80 | D27: 354 | E27: 807 | F27: 93 | G27: 126 | H27: 37 | I27: 838 | J27: 359 | K27: 193 | L27: 47 | M27: 25 | N27: 87
A28: Sacramento Kings | B28: Zaza Pachulia | C28: 52 | D28: 114 | E28: 241 | F28: 78 | G28: 103 | H28: 0 | I28: 306 | J28: 336 | K28: 79 | L28: 35 | M28: 12 | N28: 70
A29: Sacramento Kings | B29: Ekpe Udoh | C29: 74 | D29: 112 | E29: 261 | F29: 85 | G29: 111 | H29: 0 | I29: 309 | J29: 240 | K29: 42 | L29: 37 | M29: 83 | N29: 40
A30: Sacramento Kings | B30: Martell Webster | C30: 76 | D30: 281 | E30: 636 | F30: 168 | G30: 198 | H30: 139 | I30: 869 | J30: 294 | K30: 143 | L30: 50 | M30: 17 | N30: 90
A32: LA Clippers | B32: LeBron James | C32: 76 | D32: 765 | E32: 1354 | F32: 403 | G32: 535 | H32: 103 | I32: 2036 | J32: 610 | K32: 551 | L32: 129 | M32: 67 | N32: 226
A33: LA Clippers | B33: Goran Dragic | C33: 76 | D33: 394 | E33: 889 | F33: 239 | G33: 320 | H33: 86 | I33: 1113 | J33: 233 | K33: 555 | L33: 121 | M33: 26 | N33: 209
A34: LA Clippers | B34: Andre Iguodala | C34: 78 | D34: 383 | E34: 856 | F34: 150 | G34: 262 | H34: 89 | I34: 1005 | J34: 410 | K34: 421 | L34: 136 | M34: 48 | N34: 202
A35: LA Clippers | B35: Chris Bosh | C35: 74 | D35: 485 | E35: 907 | F35: 241 | G35: 302 | H35: 21 | I35: 1232 | J35: 501 | K35: 123 | L35: 66 | M35: 101 | N35: 128
A36: LA Clippers | B36: Jeremy Lin | C36: 80 | D36: 384 | E36: 864 | F36: 212 | G36: 267 | H36: 83 | I36: 1063 | J36: 242 | K36: 485 | L36: 133 | M36: 28 | N36: 232
A37: LA Clippers | B37: Isaiah Thomas | C37: 77 | D37: 356 | E37: 805 | F37: 249 | G37: 283 | H37: 108 | I37: 1069 | J37: 153 | K37: 304 | L37: 65 | M37: 3 | N37: 132
A38: LA Clippers | B38: Derrick Favors | C38: 75 | D38: 267 | E38: 552 | F38: 177 | G38: 257 | H38: 0 | I38: 711 | J38: 529 | K38: 71 | L38: 64 | M38: 128 | N38: 127
A39: LA Clippers | B39: Kawhi Leonard | C39: 57 | D39: 258 | E39: 520 | F39: 104 | G39: 126 | H39: 65 | I39: 685 | J39: 343 | K39: 92 | L39: 95 | M39: 32 | N39: 61
A40: LA Clippers | B40: Omer Asik | C40: 80 | D40: 325 | E40: 603 | F40: 168 | G40: 298 | H40: 0 | I40: 818 | J40: 937 | K40: 74 | L40: 46 | M40: 86 | N40: 171
A41: LA Clippers | B41: Antawn Jamison | C41: 75 | D41: 261 | E41: 563 | F41: 92 | G41: 132 | H41: 82 | I41: 696 | J41: 358 | K41: 49 | L41: 30 | M41: 22 | N41: 52
A42: LA Clippers | B42: Kendrick Perkins | C42: 78 | D42: 144 | E42: 314 | F42: 44 | G42: 72 | H42: 0 | I42: 332 | J42: 467 | K42: 111 | L42: 43 | M42: 83 | N42: 109
A43: LA Clippers | B43: Jonas Valanciunas | C43: 60 | D43: 194 | E43: 351 | F43: 135 | G43: 171 | H43: 0 | I43: 523 | J43: 357 | K43: 45 | L43: 17 | M43: 72 | N43: 86
A44: LA Clippers | B44: Tobias Harris | C44: 53 | D44: 218 | E44: 479 | F44: 94 | G44: 119 | H44: 34 | I44: 564 | J44: 275 | K44: 63 | L44: 30 | M44: 43 | N44: 65
A45: LA Clippers | B45: E'Twaun Moore | C45: 73 | D45: 230 | E45: 582 | F45: 46 | G45: 57 | H45: 66 | I45: 572 | J45: 162 | K45: 200 | L45: 50 | M45: 22 | N45: 103
A47: PDX Trail Blazers | B47: Marc Gasol | C47: 78 | D47: 425 | E47: 860 | F47: 266 | G47: 313 | H47: 1 | I47: 1117 | J47: 609 | K47: 310 | L47: 78 | M47: 136 | N47: 154
A48: PDX Trail Blazers | B48: Nicolas Batum | C48: 73 | D48: 352 | E48: 833 | F48: 178 | G48: 210 | H48: 165 | I48: 1047 | J48: 412 | K48: 360 | L48: 91 | M48: 83 | N48: 190
A49: PDX Trail Blazers | B49: Ryan Anderson | C49: 80 | D49: 468 | E49: 1102 | F49: 148 | G49: 175 | H49: 212 | I49: 1296 | J49: 512 | K49: 97 | L49: 42 | M49: 31 | N49: 97
A50: PDX Trail Blazers | B50: Greg Monroe | C50: 79 | D50: 499 | E50: 1034 | F50: 261 | G50: 381 | H50: 0 | I50: 1259 | J50: 749 | K50: 274 | L50: 103 | M50: 54 | N50: 227
A51: PDX Trail Blazers | B51: Steve Nash | C51: 50 | D51: 236 | E51: 475 | F51: 107 | G51: 116 | H51: 57 | I51: 636 | J51: 142 | K51: 333 | L51: 30 | M51: 5 | N51: 126
A52: PDX Trail Blazers | B52: Wilson Chandler | C52: 41 | D52: 194 | E52: 428 | F52: 83 | G52: 106 | H52: 47 | I52: 518 | J52: 209 | K52: 54 | L52: 44 | M52: 12 | N52: 56
A53: PDX Trail Blazers | B53: Greivis Vasquez | C53: 78 | D53: 438 | E53: 1012 | F53: 124 | G53: 154 | H53: 83 | I53: 1083 | J53: 337 | K53: 704 | L53: 66 | M53: 6 | N53: 247
A54: PDX Trail Blazers | B54: Jarrett Jack | C54: 77 | D54: 378 | E54: 839 | F54: 165 | G54: 195 | H54: 82 | I54: 1003 | J54: 237 | K54: 421 | L54: 59 | M54: 10 | N54: 154
A55: PDX Trail Blazers | B55: Caron Butler | C55: 76 | D55: 292 | E55: 698 | F55: 75 | G55: 90 | H55: 121 | I55: 780 | J55: 217 | K55: 78 | L55: 49 | M55: 11 | N55: 71
A56: PDX Trail Blazers | B56: Jerryd Bayless | C56: 78 | D56: 253 | E56: 602 | F56: 97 | G56: 116 | H56: 68 | I56: 671 | J56: 169 | K56: 257 | L56: 53 | M56: 16 | N56: 118
A57: PDX Trail Blazers | B57: Josh McRoberts | C57: 65 | D57: 146 | E57: 332 | F57: 58 | G57: 77 | H57: 21 | I57: 371 | J57: 310 | K57: 131 | L57: 31 | M57: 26 | N57: 58
A58: PDX Trail Blazers | B58: Kyle Singler | C58: 80 | D58: 267 | E58: 626 | F58: 98 | G58: 122 | H58: 68 | I58: 700 | J58: 321 | K58: 75 | L58: 53 | M58: 36 | N58: 97
A59: PDX Trail Blazers | B59: Earl Clark | C59: 58 | D59: 170 | E59: 385 | F59: 53 | G59: 76 | H59: 35 | I59: 428 | J59: 324 | K59: 66 | L59: 36 | M59: 44 | N59: 61
A60: PDX Trail Blazers | B60: Reggie Evans | C60: 79 | D60: 122 | E60: 255 | F60: 112 | G60: 219 | H60: 0 | I60: 356 | J60: 877 | K60: 43 | L60: 73 | M60: 13 | N60: 108
A62: ATL Hawks | B62: Al Jefferson | C62: 76 | D62: 595 | E62: 1202 | F62: 155 | G62: 205 | H62: 2 | I62: 1347 | J62: 696 | K62: 162 | L62: 79 | M62: 86 | N62: 101
A63: ATL Hawks | B63: Nene Hilario | C63: 61 | D63: 285 | E63: 594 | F63: 196 | G63: 269 | H63: 0 | I63: 766 | J63: 407 | K63: 177 | L63: 55 | M63: 37 | N63: 139
A64: ATL Hawks | B64: Wesley Matthews | C64: 69 | D64: 352 | E64: 808 | F64: 149 | G64: 187 | H64: 169 | I64: 1022 | J64: 191 | K64: 174 | L64: 90 | M64: 18 | N64: 109
A65: ATL Hawks | B65: Evan Turner | C65: 80 | D65: 429 | E65: 1022 | F65: 151 | G65: 204 | H65: 56 | I65: 1065 | J65: 508 | K65: 344 | L65: 68 | M65: 17 | N65: 185
A66: ATL Hawks | B66: O.J. Mayo | C66: 80 | D66: 458 | E66: 1014 | F66: 191 | G66: 233 | H66: 141 | I66: 1248 | J66: 286 | K66: 357 | L66: 93 | M66: 23 | N66: 202
A67: ATL Hawks | B67: Dion Waiters | C67: 59 | D67: 323 | E67: 788 | F67: 155 | G67: 208 | H67: 61 | I67: 862 | J67: 146 | K67: 176 | L67: 57 | M67: 14 | N67: 118
A68: ATL Hawks | B68: Jason Kidd | C68: 75 | D68: 150 | E68: 401 | F68: 40 | G68: 48 | H68: 112 | I68: 452 | J68: 321 | K68: 243 | L68: 124 | M68: 25 | N68: 75
A69: ATL Hawks | B69: Mike Dunleavy | C69: 73 | D69: 268 | E69: 602 | F69: 101 | G69: 123 | H69: 124 | I69: 761 | J69: 283 | K69: 140 | L69: 38 | M69: 34 | N69: 88
A70: ATL Hawks | B70: Marvin Williams | C70: 71 | D70: 195 | E70: 459 | F70: 76 | G70: 97 | H70: 53 | I70: 519 | J70: 256 | K70: 76 | L70: 37 | M70: 38 | N70: 60
A71: ATL Hawks | B71: DeMar DeRozan | C71: 80 | D71: 529 | E71: 1201 | F71: 345 | G71: 416 | H71: 28 | I71: 1431 | J71: 316 | K71: 202 | L71: 76 | M71: 24 | N71: 150
A72: ATL Hawks | B72: Ramon Sessions | C72: 61 | D72: 276 | E72: 676 | F72: 291 | G72: 347 | H72: 33 | I72: 876 | J72: 169 | K72: 230 | L72: 48 | M72: 7 | N72: 104
A73: ATL Hawks | B73: Andre Drummond | C73: 58 | D73: 201 | E73: 331 | F73: 55 | G73: 152 | H73: 1 | I73: 458 | J73: 446 | K73: 29 | L73: 54 | M73: 91 | N73: 53
A74: ATL Hawks | B74: Nick Collison | C74: 80 | D74: 175 | E74: 292 | F74: 60 | G74: 78 | H74: 0 | I74: 410 | J74: 331 | K74: 121 | L74: 51 | M74: 30 | N74: 69
A75: ATL Hawks | B75: Patrick Patterson | C75: 69 | D75: 314 | E75: 615 | F75: 48 | G75: 63 | H75: 50 | I75: 726 | J75: 329 | K75: 78 | L75: 31 | M75: 40 | N75: 61
A77: Boston Celtics | B77: Russell Westbrook | C77: 80 | D77: 663 | E77: 1511 | F77: 457 | G77: 571 | H77: 95 | I77: 1878 | J77: 423 | K77: 596 | L77: 142 | M77: 24 | N77: 269
A78: Boston Celtics | B78: Joakim Noah | C78: 64 | D78: 301 | E78: 625 | F78: 176 | G78: 233 | H78: 0 | I78: 778 | J78: 727 | K78: 261 | L78: 77 | M78: 141 | N78: 173
A79: Boston Celtics | B79: Raymond Felton | C79: 68 | D79: 377 | E79: 882 | F79: 101 | G79: 128 | H79: 93 | I79: 948 | J79: 195 | K79: 372 | L79: 94 | M79: 14 | N79: 155
A80: Boston Celtics | B80: Roy Hibbert | C80: 79 | D80: 385 | E80: 859 | F80: 166 | G80: 224 | H80: 1 | I80: 937 | J80: 656 | K80: 113 | L80: 39 | M80: 206 | N80: 162
A81: Boston Celtics | B81: Mo Williams | C81: 44 | D81: 219 | E81: 505 | F81: 73 | G81: 80 | H81: 58 | I81: 569 | J81: 105 | K81: 275 | L81: 41 | M81: 9 | N81: 118
A82: Boston Celtics | B82: JaVale McGee | C82: 77 | D82: 298 | E82: 516 | F82: 108 | G82: 181 | H82: 1 | I82: 705 | J82: 361 | K82: 24 | L82: 30 | M82: 154 | N82: 86
A83: Boston Celtics | B83: Avery Bradley | C83: 49 | D83: 188 | E83: 468 | F83: 35 | G83: 47 | H83: 39 | I83: 450 | J83: 108 | K83: 101 | L83: 63 | M83: 19 | N83: 69
A84: Boston Celtics | B84: Trevor Ariza | C84: 56 | D84: 188 | E84: 451 | F84: 78 | G84: 95 | H84: 76 | I84: 530 | J84: 266 | K84: 114 | L84: 72 | M84: 20 | N84: 84
A85: Boston Celtics | B85: Tony Allen | C85: 77 | D85: 278 | E85: 624 | F85: 132 | G85: 184 | H85: 3 | I85: 691 | J85: 352 | K85: 93 | L85: 117 | M85: 44 | N85: 92
A86: Boston Celtics | B86: Brandon Bass | C86: 80 | D86: 283 | E86: 581 | F86: 129 | G86: 150 | H86: 0 | I86: 695 | J86: 422 | K86: 83 | L86: 44 | M86: 64 | N86: 79
A87: Boston Celtics | B87: Chandler Parsons | C87: 74 | D87: 438 | E87: 908 | F87: 106 | G87: 146 | H87: 148 | I87: 1130 | J87: 396 | K87: 260 | L87: 74 | M87: 31 | N87: 141
A88: Boston Celtics | B88: Steve Novak | C88: 79 | D88: 171 | E88: 413 | F88: 30 | G88: 33 | H88: 143 | I88: 515 | J88: 144 | K88: 32 | L88: 27 | M88: 8 | N88: 11
A89: Boston Celtics | B89: Amir Johnson | C89: 79 | D89: 330 | E89: 597 | F89: 133 | G89: 183 | H89: 3 | I89: 796 | J89: 601 | K89: 118 | L89: 80 | M89: 102 | N89: 116
A90: Boston Celtics | B90: Alonzo Gee | C90: 80 | D90: 295 | E90: 726 | F90: 160 | G90: 201 | H90: 66 | I90: 816 | J90: 312 | K90: 132 | L90: 103 | M90: 29 | N90: 132
A92: Denver Nuggets | B92: Danny Granger | C92: 5 | D92: 10 | E92: 35 | F92: 5 | G92: 8 | H92: 2 | I92: 27 | J92: 9 | K92: 3 | L92: 2 | M92: 1 | N92: 4
A93: Denver Nuggets | B93: Rudy Gay | C93: 73 | D93: 506 | E93: 1225 | F93: 236 | G93: 291 | H93: 77 | I93: 1325 | J93: 448 | K93: 195 | L93: 111 | M93: 53 | N93: 194
A94: Denver Nuggets | B94: Anthony Davis | C94: 64 | D94: 349 | E94: 676 | F94: 169 | G94: 225 | H94: 0 | I94: 867 | J94: 522 | K94: 63 | L94: 75 | M94: 112 | N94: 89
A95: Denver Nuggets | B95: Jrue Holiday | C95: 76 | D95: 546 | E95: 1271 | F95: 182 | G95: 242 | H95: 90 | I95: 1364 | J95: 325 | K95: 622 | L95: 122 | M95: 32 | N95: 286
A96: Denver Nuggets | B96: Kenneth Faried | C96: 80 | D96: 380 | E96: 689 | F96: 163 | G96: 266 | H96: 0 | I96: 923 | J96: 734 | K96: 77 | L96: 81 | M96: 83 | N96: 113
A97: Denver Nuggets | B97: Damian Lillard | C97: 80 | D97: 542 | E97: 1263 | F97: 264 | G97: 312 | H97: 181 | I97: 1529 | J97: 253 | K97: 520 | L97: 73 | M97: 19 | N97: 237
A98: Denver Nuggets | B98: Dorell Wright | C98: 77 | D98: 224 | E98: 572 | F98: 109 | G98: 129 | H98: 127 | I98: 684 | J98: 292 | K98: 139 | L98: 60 | M98: 32 | N98: 62
A99: Denver Nuggets | B99: Nikola Pekovic | C99: 62 | D99: 385 | E99: 741 | F99: 241 | G99: 324 | H99: 0 | I99: 1011 | J99: 545 | K99: 53 | L99: 43 | M99: 50 | N99: 101
A100: Denver Nuggets | B100: C.J. Miles | C100: 65 | D100: 255 | E100: 614 | F100: 93 | G100: 107 | H100: 126 | I100: 729 | J100: 174 | K100: 63 | L100: 49 | M100: 17 | N100: 69
A101: Denver Nuggets | B101: John Henson | C101: 61 | D101: 145 | E101: 304 | F101: 48 | G101: 91 | H101: 0 | I101: 338 | J101: 266 | K101: 28 | L101: 16 | M101: 38 | N101: 45
A102: Denver Nuggets | B102: Enes Kanter | C102: 70 | D102: 206 | E102: 379 | F102: 93 | G102: 117 | H102: 1 | I102: 506 | J102: 304 | K102: 31 | L102: 28 | M102: 32 | N102: 101
A103: Denver Nuggets | B103: Alan Anderson | C103: 63 | D103: 230 | E103: 597 | F103: 120 | G103: 141 | H103: 93 | I103: 673 | J103: 138 | K103: 100 | L103: 48 | M103: 7 | N103: 79
A104: Denver Nuggets | B104: Will Bynum | C104: 63 | D104: 238 | E104: 517 | F104: 93 | G104: 116 | H104: 22 | I104: 591 | J104: 94 | K104: 224 | L104: 43 | M104: 5 | N104: 117
A105: Denver Nuggets | B105: Marcus Morris | C105: 75 | D105: 218 | E105: 517 | F105: 66 | G105: 113 | H105: 86 | I105: 588 | J105: 271 | K105: 59 | L105: 44 | M105: 20 | N105: 77
A107: OKC Thunder | B107: LaMarcus Aldridge | C107: 73 | D107: 626 | E107: 1295 | F107: 276 | G107: 342 | H107: 2 | I107: 1530 | J107: 649 | K107: 191 | L107: 62 | M107: 88 | N107: 141
A108: OKC Thunder | B108: Kyrie Irving | C108: 57 | D108: 468 | E108: 1031 | F108: 243 | G108: 284 | H108: 106 | I108: 1285 | J108: 209 | K108: 332 | L108: 87 | M108: 20 | N108: 184
A109: OKC Thunder | B109: Carmelo Anthony | C109: 67 | D109: 669 | E109: 1489 | F109: 425 | G109: 512 | H109: 157 | I109: 1920 | J109: 460 | K109: 171 | L109: 52 | M109: 32 | N109: 175
A110: OKC Thunder | B110: Tony Parker | C110: 65 | D110: 516 | E110: 985 | F110: 270 | G110: 321 | H110: 24 | I110: 1326 | J110: 198 | K110: 491 | L110: 53 | M110: 6 | N110: 168
A111: OKC Thunder | B111: Jeff Teague | C111: 79 | D111: 437 | E111: 969 | F111: 199 | G111: 226 | H111: 89 | I111: 1162 | J111: 180 | K111: 570 | L111: 117 | M111: 28 | N111: 229
A112: OKC Thunder | B112: Tyreke Evans | C112: 64 | D112: 362 | E112: 760 | F112: 210 | G112: 271 | H112: 45 | I112: 979 | J112: 287 | K112: 228 | L112: 89 | M112: 27 | N112: 128
A113: OKC Thunder | B113: Elton Brand | C113: 70 | D113: 225 | E113: 471 | F113: 66 | G113: 93 | H113: 0 | I113: 516 | J113: 424 | K113: 68 | L113: 50 | M113: 92 | N113: 57
A114: OKC Thunder | B114: Nikola Vucevic | C114: 75 | D114: 446 | E114: 863 | F114: 79 | G114: 117 | H114: 0 | I114: 971 | J114: 890 | K114: 140 | L114: 57 | M114: 78 | N114: 136
A115: OKC Thunder | B115: Courtney Lee | C115: 77 | D115: 243 | E115: 520 | F115: 62 | G115: 72 | H115: 56 | I115: 604 | J115: 185 | K115: 142 | L115: 88 | M115: 20 | N115: 83
A116: OKC Thunder | B116: Randy Foye | C116: 80 | D116: 287 | E116: 718 | F116: 112 | G116: 136 | H116: 175 | I116: 861 | J116: 122 | K116: 162 | L116: 64 | M116: 26 | N116: 92
A117: OKC Thunder | B117: Derrick Williams | C117: 76 | D117: 324 | E117: 758 | F117: 183 | G117: 260 | H117: 63 | I117: 894 | J117: 418 | K117: 43 | L117: 42 | M117: 37 | N117: 99
A118: OKC Thunder | B118: DeJuan Blair | C118: 59 | D118: 130 | E118: 247 | F118: 44 | G118: 68 | H118: 0 | I118: 304 | J118: 219 | K118: 45 | L118: 34 | M118: 9 | N118: 47
A119: OKC Thunder | B119: Shannon Brown | C119: 58 | D119: 234 | E119: 563 | F119: 98 | G119: 125 | H119: 38 | I119: 604 | J119: 148 | K119: 108 | L119: 58 | M119: 15 | N119: 74
A120: OKC Thunder | B120: Andrew Nicholson | C120: 73 | D120: 249 | E120: 475 | F120: 75 | G120: 94 | H120: 0 | I120: 573 | J120: 253 | K120: 42 | L120: 23 | M120: 32 | N120: 78
A122: GoldenState Warriors | B122: Dwyane Wade | C122: 68 | D122: 560 | E122: 1078 | F122: 305 | G122: 417 | H122: 17 | I122: 1442 | J122: 339 | K122: 343 | L122: 128 | M122: 54 | N122: 192
A123: GoldenState Warriors | B123: DeMarcus Cousins | C123: 73 | D123: 466 | E123: 1003 | F123: 301 | G123: 408 | H123: 4 | I123: 1237 | J123: 718 | K123: 194 | L123: 108 | M123: 52 | N123: 217
A124: GoldenState Warriors | B124: Marcus Thornton | C124: 70 | D124: 321 | E124: 744 | F124: 111 | G124: 126 | H124: 136 | I124: 889 | J124: 176 | K124: 85 | L124: 58 | M124: 4 | N124: 67
A125: GoldenState Warriors | B125: Joe Johnson | C125: 71 | D125: 441 | E125: 1044 | F125: 132 | G125: 161 | H125: 146 | I125: 1160 | J125: 216 | K125: 251 | L125: 49 | M125: 14 | N125: 123
A126: GoldenState Warriors | B126: Carlos Boozer | C126: 77 | D126: 525 | E126: 1109 | F126: 190 | G126: 260 | H126: 0 | I126: 1240 | J126: 750 | K126: 171 | L126: 66 | M126: 28 | N126: 171
A127: GoldenState Warriors | B127: John Wall | C127: 47 | D127: 311 | E127: 695 | F127: 232 | G127: 286 | H127: 11 | I127: 865 | J127: 187 | K127: 356 | L127: 61 | M127: 37 | N127: 153
A128: GoldenState Warriors | B128: Klay Thompson | C128: 80 | D128: 489 | E128: 1169 | F128: 129 | G128: 153 | H128: 205 | I128: 1312 | J128: 298 | K128: 182 | L128: 84 | M128: 43 | N128: 152
A129: GoldenState Warriors | B129: Luis Scola | C129: 80 | D129: 415 | E129: 880 | F129: 172 | G129: 219 | H129: 3 | I129: 1005 | J129: 515 | K129: 174 | L129: 66 | M129: 35 | N129: 123
A130: GoldenState Warriors | B130: Thaddeus Young | C130: 74 | D130: 499 | E130: 943 | F130: 107 | G130: 186 | H130: 1 | I130: 1106 | J130: 560 | K130: 124 | L130: 128 | M130: 55 | N130: 89
A131: GoldenState Warriors | B131: Jason Terry | C131: 79 | D131: 281 | E131: 648 | F131: 114 | G131: 131 | H131: 123 | I131: 799 | J131: 159 | K131: 198 | L131: 66 | M131: 11 | N131: 102
A132: GoldenState Warriors | B132: Ricky Rubio | C132: 55 | D132: 179 | E132: 495 | F132: 208 | G132: 260 | H132: 24 | I132: 590 | J132: 221 | K132: 410 | L132: 133 | M132: 5 | N132: 167
A133: GoldenState Warriors | B133: Gerald Henderson | C133: 66 | D133: 365 | E133: 826 | F133: 251 | G133: 305 | H133: 32 | I133: 1013 | J133: 244 | K133: 166 | L133: 67 | M133: 33 | N133: 101
A134: GoldenState Warriors | B134: Al-Farouq Aminu | C134: 75 | D134: 217 | E134: 459 | F134: 101 | G134: 137 | H134: 4 | I134: 539 | J134: 565 | K134: 102 | L134: 92 | M134: 50 | N134: 113
A135: GoldenState Warriors | B135: Luc Richard Mbah a Moute | C135: 56 | D135: 151 | E135: 369 | F135: 71 | G135: 124 | H135: 13 | I135: 386 | J135: 254 | K135: 54 | L135: 42 | M135: 14 | N135: 69
A137: New York Knicks | B137: Dwight Howard | C137: 75 | D137: 464 | E137: 798 | F137: 351 | G137: 711 | H137: 1 | I137: 1280 | J137: 927 | K137: 106 | L137: 81 | M137: 182 | N137: 221
A138: New York Knicks | B138: Kyle Lowry | C138: 66 | D138: 245 | E138: 608 | F138: 186 | G138: 235 | H138: 98 | I138: 774 | J138: 314 | K138: 416 | L138: 88 | M138: 24 | N138: 151
A139: New York Knicks | B139: Kevin Garnett | C139: 68 | D139: 422 | E139: 850 | F139: 158 | G139: 201 | H139: 2 | I139: 1004 | J139: 530 | K139: 159 | L139: 78 | M139: 62 | N139: 110
A140: New York Knicks | B140: Zach Randolph | C140: 74 | D140: 458 | E140: 997 | F140: 217 | G140: 289 | H140: 2 | I140: 1135 | J140: 828 | K140: 105 | L140: 61 | M140: 31 | N140: 147
A141: New York Knicks | B141: Kevin Martin | C141: 77 | D141: 350 | E141: 778 | F141: 219 | G141: 246 | H141: 158 | I141: 1077 | J141: 178 | K141: 106 | L141: 72 | M141: 8 | N141: 101
A142: New York Knicks | B142: George Hill | C142: 76 | D142: 386 | E142: 871 | F142: 174 | G142: 213 | H142: 130 | I142: 1076 | J142: 284 | K142: 355 | L142: 81 | M142: 26 | N142: 116
A143: New York Knicks | B143: Harrison Barnes | C143: 79 | D143: 269 | E143: 608 | F143: 140 | G143: 186 | H143: 51 | I143: 729 | J143: 316 | K143: 92 | L143: 51 | M143: 14 | N143: 94
A144: New York Knicks | B144: Gordon Hayward | C144: 70 | D144: 330 | E144: 760 | F144: 239 | G144: 289 | H144: 101 | I144: 1000 | J144: 216 | K144: 208 | L144: 56 | M144: 38 | N144: 116
A145: New York Knicks | B145: Marco Belinelli | C145: 71 | D145: 233 | E145: 593 | F145: 139 | G145: 166 | H145: 77 | I145: 682 | J145: 137 | K145: 144 | L145: 44 | M145: 6 | N145: 82
A146: New York Knicks | B146: Metta World Peace | C146: 74 | D146: 328 | E146: 813 | F146: 122 | G146: 166 | H146: 139 | I146: 917 | J146: 369 | K146: 109 | L146: 121 | M146: 42 | N146: 98
A147: New York Knicks | B147: Tyler Hansbrough | C147: 80 | D147: 173 | E147: 398 | F147: 212 | G147: 294 | H147: 0 | I147: 558 | J147: 364 | K147: 36 | L147: 29 | M147: 18 | N147: 75
A148: New York Knicks | B148: Gerald Green | C148: 59 | D148: 141 | E148: 401 | F148: 52 | G148: 64 | H148: 53 | I148: 387 | J148: 135 | K148: 49 | L148: 16 | M148: 22 | N148: 50
A149: New York Knicks | B149: Andray Blatche | C149: 80 | D149: 331 | E149: 646 | F149: 144 | G149: 207 | H149: 2 | I149: 808 | J149: 403 | K149: 80 | L149: 82 | M149: 54 | N149: 118
A150: New York Knicks | B150: Lance Stephenson | C150: 77 | D150: 270 | E150: 590 | F150: 73 | G150: 113 | H150: 62 | I150: 675 | J150: 301 | K150: 217 | L150: 81 | M150: 16 | N150: 105
A152: Dallas Mavericks | B152: Pau Gasol | C152: 48 | D152: 263 | E152: 562 | F152: 122 | G152: 174 | H152: 8 | I152: 656 | J152: 401 | K152: 189 | L152: 24 | M152: 59 | N152: 101
A153: Dallas Mavericks | B153: Dirk Nowitzki | C153: 51 | D153: 328 | E153: 695 | F153: 156 | G153: 182 | H153: 63 | I153: 875 | J153: 351 | K153: 125 | L153: 37 | M153: 35 | N153: 68
A154: Dallas Mavericks | B154: Jameer Nelson | C154: 56 | D154: 306 | E154: 780 | F154: 89 | G154: 102 | H154: 121 | I154: 822 | J154: 209 | K154: 413 | L154: 71 | M154: 6 | N154: 154
A155: Dallas Mavericks | B155: Ray Allen | C155: 77 | D155: 285 | E155: 631 | F155: 137 | G155: 155 | H155: 135 | I155: 842 | J155: 216 | K155: 126 | L155: 66 | M155: 15 | N155: 97
A156: Dallas Mavericks | B156: Andre Miller | C156: 80 | D156: 300 | E156: 617 | F156: 154 | G156: 185 | H156: 17 | I156: 771 | J156: 231 | K156: 476 | L156: 70 | M156: 11 | N156: 172
A157: Dallas Mavericks | B157: Kyle Korver | C157: 73 | D157: 272 | E157: 594 | F157: 67 | G157: 78 | H157: 186 | I157: 797 | J157: 292 | K157: 145 | L157: 68 | M157: 37 | N157: 68
A158: Dallas Mavericks | B158: Carlos Delfino | C158: 65 | D158: 243 | E158: 601 | F158: 47 | G158: 55 | H158: 152 | I158: 685 | J158: 210 | K158: 131 | L158: 65 | M158: 8 | N158: 71
A159: Dallas Mavericks | B159: John Salmons | C159: 74 | D159: 241 | E159: 600 | F159: 85 | G159: 110 | H159: 99 | I159: 666 | J159: 199 | K159: 222 | L159: 51 | M159: 24 | N159: 82
A160: Dallas Mavericks | B160: Kosta Koufos | C160: 79 | D160: 287 | E160: 491 | F160: 55 | G160: 97 | H160: 0 | I160: 629 | J160: 546 | K160: 32 | L160: 44 | M160: 101 | N160: 52
A161: Dallas Mavericks | B161: Jason Maxiell | C161: 72 | D161: 204 | E161: 457 | F161: 90 | G161: 145 | H161: 0 | I161: 498 | J161: 409 | K161: 54 | L161: 32 | M161: 95 | N161: 81
A162: Dallas Mavericks | B162: Corey Maggette | C162: 18 | D162: 27 | E162: 76 | F162: 36 | G162: 48 | H162: 5 | I162: 95 | J162: 25 | K162: 19 | L162: 6 | M162: 2 | N162: 17
A163: Dallas Mavericks | B163: Jimmer Fredette | C163: 67 | D163: 167 | E163: 395 | F163: 84 | G163: 95 | H163: 63 | I163: 481 | J163: 68 | K163: 90 | L163: 29 | M163: 3 | N163: 66
A164: Dallas Mavericks | B164: Terrence Ross | C164: 72 | D164: 183 | E164: 450 | F164: 28 | G164: 40 | H164: 65 | I164: 459 | J164: 142 | K164: 53 | L164: 40 | M164: 14 | N164: 48
A165: Dallas Mavericks | B165: A.J. Price | C165: 55 | D165: 151 | E165: 392 | F165: 44 | G165: 56 | H165: 67 | I165: 413 | J165: 111 | K165: 197 | L165: 31 | M165: 2 | N165: 61
A167: Miami Heat | B167: Chris Paul | C167: 68 | D167: 398 | E167: 829 | F167: 281 | G167: 316 | H167: 76 | I167: 1153 | J167: 257 | K167: 656 | L167: 165 | M167: 10 | N167: 158
A168: Miami Heat | B168: Paul Pierce | C168: 76 | D168: 471 | E168: 1085 | F168: 333 | G168: 422 | H168: 144 | I168: 1419 | J168: 486 | K168: 369 | L168: 83 | M168: 30 | N168: 214
A169: Miami Heat | B169: Paul George | C169: 79 | D169: 493 | E169: 1176 | F169: 221 | G169: 274 | H169: 170 | I169: 1377 | J169: 603 | K169: 327 | L169: 143 | M169: 51 | N169: 233
A170: Miami Heat | B170: David Lee | C170: 77 | D170: 588 | E170: 1138 | F170: 251 | G170: 313 | H170: 0 | I170: 1427 | J170: 865 | K170: 276 | L170: 64 | M170: 22 | N170: 204
A171: Miami Heat | B171: Tim Duncan | C171: 68 | D171: 485 | E171: 965 | F171: 238 | G171: 293 | H171: 2 | I171: 1210 | J171: 672 | K171: 181 | L171: 50 | M171: 182 | N171: 142
A172: Miami Heat | B172: Luol Deng | C172: 73 | D172: 456 | E172: 1075 | F172: 230 | G172: 282 | H172: 72 | I172: 1214 | J172: 467 | K172: 209 | L172: 80 | M172: 30 | N172: 142
A173: Miami Heat | B173: Jared Dudley | C173: 77 | D173: 308 | E173: 655 | F173: 128 | G173: 159 | H173: 105 | I173: 849 | J173: 240 | K173: 198 | L173: 73 | M173: 8 | N173: 99
A174: Miami Heat | B174: J.J. Hickson | C174: 78 | D174: 414 | E174: 733 | F174: 181 | G174: 266 | H174: 0 | I174: 1009 | J174: 818 | K174: 87 | L174: 47 | M174: 51 | N174: 142
A175: Miami Heat | B175: Kirk Hinrich | C175: 58 | D175: 147 | E175: 405 | F175: 68 | G175: 95 | H175: 65 | I175: 427 | J175: 154 | K175: 304 | L175: 60 | M175: 25 | N175: 97
A176: Miami Heat | B176: Rodney Stuckey | C176: 74 | D176: 296 | E176: 731 | F176: 213 | G176: 272 | H176: 52 | I176: 857 | J176: 208 | K176: 262 | L176: 49 | M176: 17 | N176: 130
A177: Miami Heat | B177: Jason Thompson | C177: 80 | D177: 369 | E177: 730 | F177: 138 | G177: 198 | H177: 0 | I177: 876 | J177: 540 | K177: 84 | L177: 45 | M177: 61 | N177: 101
A178: Miami Heat | B178: Gary Neal | C178: 66 | D178: 230 | E178: 570 | F178: 58 | G178: 67 | H178: 85 | I178: 603 | J178: 136 | K178: 124 | L178: 29 | M178: 2 | N178: 63
A179: Miami Heat | B179: Corey Brewer | C179: 80 | D179: 373 | E179: 873 | F179: 144 | G179: 206 | H179: 91 | I179: 981 | J179: 229 | K179: 122 | L179: 117 | M179: 23 | N179: 98
A180: Miami Heat | B180: Daniel Gibson | C180: 46 | D180: 84 | E180: 247 | F180: 26 | G180: 37 | H180: 56 | I180: 250 | J180: 60 | K180: 82 | L180: 30 | M180: 4 | N180: 31
A182: Utah Jazz | B182: Brandon Jennings | C182: 78 | D182: 490 | E182: 1222 | F182: 228 | G182: 279 | H182: 168 | I182: 1376 | J182: 241 | K182: 515 | L182: 125 | M182: 10 | N182: 200
A183: Utah Jazz | B183: Marcin Gortat | C183: 61 | D183: 295 | E183: 566 | F183: 90 | G183: 138 | H183: 0 | I183: 680 | J183: 516 | K183: 75 | L183: 40 | M183: 98 | N183: 99
A184: Utah Jazz | B184: Blake Griffin | C184: 78 | D184: 568 | E184: 1053 | F184: 276 | G184: 419 | H184: 5 | I184: 1417 | J184: 652 | K184: 293 | L184: 95 | M184: 50 | N184: 178
A185: Utah Jazz | B185: Monta Ellis | C185: 80 | D185: 582 | E185: 1408 | F185: 285 | G185: 369 | H185: 88 | I185: 1537 | J185: 314 | K185: 490 | L185: 166 | M185: 36 | N185: 249
A186: Utah Jazz | B186: David West | C186: 73 | D186: 502 | E186: 1009 | F186: 242 | G186: 315 | H186: 4 | I186: 1250 | J186: 563 | K186: 213 | L186: 74 | M186: 69 | N186: 157
A187: Utah Jazz | B187: Samuel Dalembert | C187: 47 | D187: 137 | E187: 253 | F187: 38 | G187: 55 | H187: 1 | I187: 313 | J187: 276 | K187: 21 | L187: 17 | M187: 53 | N187: 51
A188: Utah Jazz | B188: Al Harrington | C188: 10 | D188: 20 | E188: 57 | F188: 3 | G188: 4 | H188: 8 | I188: 51 | J188: 27 | K188: 10 | L188: 4 | M188: 1 | N188: 7
A189: Utah Jazz | B189: Andrei Kirilenko | C189: 62 | D189: 280 | E189: 547 | F189: 184 | G189: 245 | H189: 35 | I189: 779 | J189: 349 | K189: 169 | L189: 93 | M189: 61 | N189: 117
A190: Utah Jazz | B190: Rashard Lewis | C190: 53 | D190: 92 | E190: 224 | F190: 21 | G190: 34 | H190: 45 | I190: 250 | J190: 110 | K190: 28 | L190: 19 | M190: 12 | N190: 32
A191: Utah Jazz | B191: Nate Robinson | C191: 80 | D191: 395 | E191: 911 | F191: 135 | G191: 169 | H191: 138 | I191: 1063 | J191: 176 | K191: 347 | L191: 83 | M191: 10 | N191: 137
A192: Utah Jazz | B192: Ronnie Brewer | C192: 58 | D192: 68 | E192: 184 | F192: 16 | G192: 39 | H192: 23 | I192: 175 | J192: 120 | K192: 46 | L192: 42 | M192: 6 | N192: 18
A193: Utah Jazz | B193: Robin Lopez | C193: 81 | D193: 378 | E193: 708 | F193: 159 | G193: 205 | H193: 0 | I193: 915 | J193: 449 | K193: 64 | L193: 32 | M193: 128 | N193: 108
A194: Utah Jazz | B194: J.J. Barea | C194: 72 | D194: 308 | E194: 734 | F194: 103 | G194: 131 | H194: 94 | I194: 813 | J194: 203 | K194: 284 | L194: 32 | M194: 0 | N194: 141
A195: Utah Jazz | B195: Jeremy Lamb | C195: 21 | D195: 14 | E195: 39 | F195: 13 | G195: 13 | H195: 9 | I195: 50 | J195: 9 | K195: 3 | L195: 2 | M195: 1 | N195: 4
A197: Da' Bulls | B197: James Harden | C197: 76 | D197: 572 | E197: 1294 | F197: 658 | G197: 769 | H197: 175 | I197: 1977 | J197: 367 | K197: 450 | L197: 140 | M197: 38 | N197: 285
A198: Da' Bulls | B198: Serge Ibaka | C198: 78 | D198: 434 | E198: 757 | F198: 143 | G198: 191 | H198: 20 | I198: 1031 | J198: 608 | K198: 43 | L198: 27 | M198: 239 | N198: 123
A199: Da' Bulls | B199: Gerald Wallace | C199: 67 | D199: 179 | E199: 450 | F199: 120 | G199: 185 | H199: 46 | I199: 524 | J199: 318 | K199: 176 | L199: 92 | M199: 45 | N199: 108
A200: Da' Bulls | B200: Arron Afflalo | C200: 64 | D200: 397 | E200: 905 | F200: 191 | G200: 223 | H200: 72 | I200: 1057 | J200: 239 | K200: 206 | L200: 40 | M200: 11 | N200: 138
A201: Da' Bulls | B201: Derrick Rose | C201: - | D201: - | E201: - | F201: - | G201: - | H201: - | I201: - | J201: - | K201: - | L201: - | M201: - | N201: -
A202: Da' Bulls | B202: Emeka Okafor | C202: 78 | D202: 326 | E202: 685 | F202: 109 | G202: 191 | H202: 0 | I202: 761 | J202: 690 | K202: 93 | L202: 44 | M202: 77 | N202: 106
A203: Da' Bulls | B203: Glen Davis | C203: 34 | D203: 214 | E203: 478 | F203: 84 | G203: 117 | H203: 0 | I203: 512 | J203: 246 | K203: 70 | L203: 32 | M203: 21 | N203: 64
A204: Da' Bulls | B204: Shawn Marion | C204: 65 | D204: 345 | E204: 670 | F204: 76 | G204: 98 | H204: 22 | I204: 788 | J204: 510 | K204: 157 | L204: 68 | M204: 46 | N204: 99
A205: Da' Bulls | B205: Mario Chalmers | C205: 77 | D205: 227 | E205: 529 | F205: 89 | G205: 112 | H205: 123 | I205: 666 | J205: 171 | K205: 272 | L205: 118 | M205: 12 | N205: 119
A206: Da' Bulls | B206: J.J. Redick | C206: 76 | D206: 371 | E206: 856 | F206: 166 | G206: 185 | H206: 160 | I206: 1068 | J206: 166 | K206: 290 | L206: 37 | M206: 9 | N206: 136
A207: Da' Bulls | B207: Tiago Splitter | C207: 80 | D207: 311 | E207: 554 | F207: 208 | G207: 285 | H207: 0 | I207: 830 | J207: 508 | K207: 128 | L207: 62 | M207: 64 | N207: 98
A208: Da' Bulls | B208: Jeff Green | C208: 80 | D208: 372 | E208: 799 | F208: 214 | G208: 265 | H208: 69 | I208: 1027 | J208: 312 | K208: 126 | L208: 56 | M208: 68 | N208: 129
A209: Da' Bulls | B209: Will Barton | C209: 71 | D209: 103 | E209: 276 | F209: 49 | G209: 63 | H209: 8 | I209: 263 | J209: 132 | K209: 49 | L209: 31 | M209: 9 | N209: 51
A210: Da' Bulls | B210: Terrence Jones | C210: 17 | D210: 35 | E210: 81 | F210: 13 | G210: 17 | H210: 5 | I210: 88 | J210: 58 | K210: 12 | L210: 11 | M210: 13 | N210: 12
A212: Phoenix Suns | B212: Al Horford | C212: 74 | D212: 576 | E212: 1060 | F212: 134 | G212: 208 | H212: 3 | I212: 1289 | J212: 757 | K212: 240 | L212: 78 | M212: 78 | N212: 147
A213: Phoenix Suns | B213: Stephen Curry | C213: 76 | D213: 608 | E213: 1349 | F213: 259 | G213: 288 | H213: 261 | I213: 1736 | J213: 304 | K213: 528 | L213: 121 | M213: 12 | N213: 236
A214: Phoenix Suns | B214: Manu Ginobili | C214: 59 | D214: 228 | E214: 535 | F214: 164 | G214: 206 | H214: 83 | I214: 703 | J214: 200 | K214: 272 | L214: 80 | M214: 13 | N214: 130
... 25 more rows

Sheet Matchup
A1: Week | B1: Team | C1: FG% | D1: FT% | E1: 3PTM | F1: PTS | G1: REB | H1: AST | I1: ST | J1: BLK | K1: TO | L1: Score
A2: Total | B2: LA Lakers | C2: 15 | D2: 14 | E2: 2 | F2: 8 | G2: 15 | H2: 0 | I2: 22 | J2: 20 | K2: 17 | L2: =SUM(C2:K2) -> 113
B3: PDX Trail Blazers | C3: 8 | D3: 9 | E3: 21 | F3: 15 | G3: 8 | H3: 23 | I3: 1 | J3: 3 | K3: 5 | L3: =SUM(C3:K3) -> 93
A6: 1 | B6: LA Lakers | C6: 0.449 | D6: 0.731 | E6: 18 | F6: 338 | G6: 154 | H6: 70 | I6: 34 | J6: 15 | K6: 48 | L6: 7
B7: PDX Trail Blazers | C7: 0.42 | D7: 0.667 | E7: 20 | F7: 316 | G7: 143 | H7: 76 | I7: 31 | J7: 14 | K7: 58 | L7: 2
A9: 2 | B9: LA Lakers | C9: 0.48 | D9: 0.73 | E9: 16 | F9: 427 | G9: 221 | H9: 71 | I9: 41 | J9: 22 | K9: 71 | L9: 3
B10: PDX Trail Blazers | C10: 0.453 | D10: 0.752 | E10: 29 | F10: 483 | G10: 205 | H10: 98 | I10: 35 | J10: 29 | K10: 68 | L10: 6
A12: 3 | B12: LA Lakers | C12: 0.504 | D12: 0.777 | E12: 28 | F12: 517 | G12: 244 | H12: 87 | I12: 42 | J12: 31 | K12: 62 | L12: 5
B13: PDX Trail Blazers | C13: 0.52 | D13: 0.765 | E13: 41 | F13: 470 | G13: 180 | H13: 89 | I13: 34 | J13: 23 | K13: 62 | L13: 3
A15: 4 | B15: LA Lakers | C15: 0.469 | D15: 0.817 | E15: 21 | F15: 414 | G15: 193 | H15: 75 | I15: 29 | J15: 29 | K15: 55 | L15: 6
B16: PDX Trail Blazers | C16: 0.445 | D16: 0.75 | E16: 35 | F16: 437 | G16: 189 | H16: 90 | I16: 20 | J16: 16 | K16: 72 | L16: 3
A18: 5 | B18: LA Lakers | C18: 0.474 | D18: 0.786 | E18: 17 | F18: 385 | G18: 211 | H18: 70 | I18: 27 | J18: 41 | K18: 46 | L18: 4
B19: PDX Trail Blazers | C19: 0.406 | D19: 0.729 | E19: 44 | F19: 436 | G19: 244 | H19: 81 | I19: 35 | J19: 18 | K19: 74 | L19: 5
A21: 6 | B21: LA Lakers | C21: 0.496 | D21: 0.724 | E21: 19 | F21: 553 | G21: 264 | H21: 96 | I21: 43 | J21: 49 | K21: 67 | L21: 7
B22: PDX Trail Blazers | C22: 0.427 | D22: 0.717 | E22: 45 | F22: 457 | G22: 187 | H22: 101 | I22: 24 | J22: 21 | K22: 73 | L22: 2
A24: 7 | B24: LA Lakers | C24: 0.523 | D24: 0.791 | E24: 25 | F24: 441 | G24: 170 | H24: 81 | I24: 41 | J24: 17 | K24: 48 | L24: 4
B25: PDX Trail Blazers | C25: 0.432 | D25: 0.725 | E25: 44 | F25: 510 | G25: 224 | H25: 135 | I25: 33 | J25: 19 | K25: 56 | L25: 5
A27: 8 | B27: LA Lakers | C27: 0.478 | D27: 0.766 | E27: 38 | F27: 534 | G27: 284 | H27: 99 | I27: 43 | J27: 46 | K27: 81 | L27: 5
B28: PDX Trail Blazers | C28: 0.447 | D28: 0.814 | E28: 42 | F28: 570 | G28: 245 | H28: 123 | I28: 35 | J28: 16 | K28: 90 | L28: 4
A30: 9 | B30: LA Lakers | C30: 0.438 | D30: 0.744 | E30: 26 | F30: 405 | G30: 212 | H30: 83 | I30: 27 | J30: 34 | K30: 58 | L30: 6
B31: PDX Trail Blazers | C31: 0.472 | D31: 0.771 | E31: 25 | F31: 377 | G31: 177 | H31: 100 | I31: 21 | J31: 15 | K31: 59 | L31: 3
A33: 10 | B33: LA Lakers | C33: 0.48 | D33: 0.798 | E33: 24 | F33: 463 | G33: 217 | H33: 90 | I33: 45 | J33: 37 | K33: 71 | L33: 4
B34: PDX Trail Blazers | C34: 0.465 | D34: 0.763 | E34: 47 | F34: 551 | G34: 231 | H34: 143 | I34: 36 | J34: 26 | K34: 66 | L34: 5
A36: 11 | B36: LA Lakers | C36: 0.485 | D36: 0.721 | E36: 19 | F36: 455 | G36: 259 | H36: 89 | I36: 35 | J36: 58 | K36: 49 | L36: 5
B37: PDX Trail Blazers | C37: 0.475 | D37: 0.752 | E37: 29 | F37: 467 | G37: 187 | H37: 133 | I37: 26 | J37: 13 | K37: 66 | L37: 4
A39: 12 | B39: LA Lakers | C39: 0.429 | D39: 0.859 | E39: 27 | F39: 469 | G39: 233 | H39: 86 | I39: 43 | J39: 23 | K39: 50 | L39: 5
B40: PDX Trail Blazers | C40: 0.431 | D40: 0.723 | E40: 36 | F40: 473 | G40: 228 | H40: 141 | I40: 31 | J40: 16 | K40: 93 | L40: 4
A42: 13 | B42: LA Lakers | C42: 0.489 | D42: 0.818 | E42: 32 | F42: 544 | G42: 278 | H42: 106 | I42: 51 | J42: 40 | K42: 78 | L42: 6
B43: PDX Trail Blazers | C43: 0.444 | D43: 0.798 | E43: 43 | F43: 480 | G43: 205 | H43: 162 | I43: 23 | J43: 20 | K43: 71 | L43: 3
A45: 14 | B45: LA Lakers | C45: 0.477 | D45: 0.757 | E45: 25 | F45: 440 | G45: 211 | H45: 82 | I45: 38 | J45: 29 | K45: 56 | L45: 5
B46: PDX Trail Blazers | C46: 0.457 | D46: 0.661 | E46: 47 | F46: 515 | G46: 238 | H46: 151 | I46: 21 | J46: 24 | K46: 93 | L46: 4
A48: 15 | B48: LA Lakers | C48: 0.492 | D48: 0.781 | E48: 26 | F48: 434 | G48: 201 | H48: 105 | I48: 42 | J48: 44 | K48: 66 | L48: 3
B49: PDX Trail Blazers | C49: 0.499 | D49: 0.8 | E49: 38 | F49: 522 | G49: 256 | H49: 124 | I49: 35 | J49: 23 | K49: 87 | L49: 6
A51: 16 | B51: LA Lakers | C51: 0.439 | D51: 0.829 | E51: 11 | F51: 238 | G51: 101 | H51: 55 | I51: 26 | J51: 18 | K51: 36 | L51: 5
B52: PDX Trail Blazers | C52: 0.418 | D52: 0.672 | E52: 20 | F52: 255 | G52: 131 | H52: 74 | I52: 24 | J52: 13 | K52: 42 | L52: 4
A54: 17 | B54: LA Lakers | C54: 0.495 | D54: 0.8 | E54: 38 | F54: 500 | G54: 245 | H54: 97 | I54: 30 | J54: 42 | K54: 69 | L54: 6
B55: PDX Trail Blazers | C55: 0.426 | D55: 0.804 | E55: 32 | F55: 426 | G55: 198 | H55: 143 | I55: 26 | J55: 20 | K55: 61 | L55: 3
A57: 18 | B57: LA Lakers | C57: 0.437 | D57: 0.835 | E57: 24 | F57: 392 | G57: 224 | H57: 85 | I57: 47 | J57: 25 | K57: 60 | L57: 5
B58: PDX Trail Blazers | C58: 0.455 | D58: 0.755 | E58: 34 | F58: 485 | G58: 170 | H58: 115 | I58: 38 | J58: 19 | K58: 77 | L58: 4
A60: 19 | B60: LA Lakers | C60: 0.433 | D60: 0.785 | E60: 23 | F60: 435 | G60: 235 | H60: 98 | I60: 33 | J60: 35 | K60: 66 | L60: 5
B61: PDX Trail Blazers | C61: 0.442 | D61: 0.765 | E61: 44 | F61: 480 | G61: 182 | H61: 134 | I61: 26 | J61: 20 | K61: 67 | L61: 4
A63: 20 | B63: LA Lakers | C63: 0.453 | D63: 0.78 | E63: 22 | F63: 408 | G63: 207 | H63: 67 | I63: 42 | J63: 20 | K63: 70 | L63: 4
B64: PDX Trail Blazers | C64: 0.455 | D64: 0.758 | E64: 31 | F64: 486 | G64: 175 | H64: 133 | I64: 29 | J64: 28 | K64: 78 | L64: 5
A66: 21 | B66: LA Lakers | C66: 0.457 | D66: 0.806 | E66: 21 | F66: 485 | G66: 218 | H66: 76 | I66: 51 | J66: 37 | K66: 51 | L66: 6
B67: PDX Trail Blazers | C67: 0.439 | D67: 0.827 | E67: 35 | F67: 432 | G67: 189 | H67: 118 | I67: 29 | J67: 20 | K67: 66 | L67: 3
A69: 22 | B69: LA Lakers | C69: 0.463 | D69: 0.691 | E69: 25 | F69: 431 | G69: 170 | H69: 93 | I69: 31 | J69: 21 | K69: 57 | L69: 3
B70: PDX Trail Blazers | C70: 0.467 | D70: 0.817 | E70: 39 | F70: 471 | G70: 190 | H70: 122 | I70: 25 | J70: 19 | K70: 64 | L70: 6
A72: 23 | B72: LA Lakers | C72: 0.471 | D72: 0.747 | E72: 23 | F72: 526 | G72: 225 | H72: 106 | I72: 40 | J72: 43 | K72: 77 | L72: 4
B73: PDX Trail Blazers | C73: 0.456 | D73: 0.768 | E73: 24 | F73: 419 | G73: 228 | H73: 115 | I73: 31 | J73: 23 | K73: 66 | L73: 5
